{"text_format":"1","workbook":"xlsx","n_sheets":4,"sheets":["Report_1","Pivot","Grunddaten","Ermittlung Fahrplanstunden"],"not_rendered":{"charts":0,"images":0,"macros":1,"external_links":0,"defined_names":8,"comments":0,"pivot_tables":1},"unopened":[],"bounds":{"document_bytes":16777216,"sheet_cells":100000,"rows_first":2000,"rows_last":500,"rows_between":2000,"halvings":0,"cell_chars":16384,"cell_head_chars":4096},"cells_cut":0,"cells_raw":0,"read":"whole","date_system":"1900"}

{"sheet":"Report_1","index":0,"n_rows":24,"n_cols":6,"rows_kept":24,"cut":false,"hidden":false,"merged":[[11,0,11,5],[0,0,0,5],[1,0,1,5],[5,0,5,5],[8,0,8,5]]}
["* DIVA * Dialoggesteuertes Verkehrsmanagement- und Auskunftsystem * DIVA *"]
["15.12.2024 - 13.12.2025"]
[]
[]
["Fahrplanprojekt:",null,null,null,null,"2025-02-14T15:19:42"]
["Angebotsplanung 2025"]
[]
["Linien:"]
["NHX"]
[]
["Unternehmer:"]
["HEAG Verkehrs-GmbH"]
[]
["Regelfahrplan",null,"Montag-Freitag","Summe"]
[]
[null,"Solo-Überlandbus-NF"]
[null,"Nutz-km",223040.73400000026,223040.73400000026]
[null,"Sitzplatz-km",0,0]
[null,"Stehplatz-km",0,0]
[]
[null,"Summe"]
[null,"Nutz-km",223040.73400000026,223040.73400000026]
[null,"Sitzplatz-km",0,0]
[null,"Stehplatz-km",0,0]

{"sheet":"Pivot","index":1,"n_rows":25,"n_cols":6,"rows_kept":25,"cut":false,"hidden":false,"merged":[]}
["LIN","(Alle)"]
[]
[null,null,null,null,"WT"]
["FP","TG","Daten","LANDKREIS","Mo-Fr","Gesamtergebnis"]
["REG","Solo-Überlandbus-NF","Summe von NUTZ_KM","Darmstadt",53852.579999999958,53852.579999999958]
[null,null,null,"Fischbachtal",19339.519999999997,19339.519999999997]
[null,null,null,"Groß-Bieberau",25339.859999999986,25339.859999999986]
[null,null,null,"Reinheim",124508.77400000009,124508.77400000009]
[null,null,"Summe von SITZ_KM","Darmstadt",0,0]
[null,null,null,"Fischbachtal",0,0]
[null,null,null,"Groß-Bieberau",0,0]
[null,null,null,"Reinheim",0,0]
[null,null,"Summe von STEH_KM","Darmstadt",0,0]
[null,null,null,"Fischbachtal",0,0]
[null,null,null,"Groß-Bieberau",0,0]
[null,null,null,"Reinheim",0,0]
[null,"Solo-Überlandbus-NF Summe von NUTZ_KM",null,null,223040.73400000003,223040.73400000003]
[null,"Solo-Überlandbus-NF Summe von SITZ_KM",null,null,0,0]
[null,"Solo-Überlandbus-NF Summe von STEH_KM",null,null,0,0]
["REG Summe von NUTZ_KM",null,null,null,223040.73400000003,223040.73400000003]
["REG Summe von SITZ_KM",null,null,null,0,0]
["REG Summe von STEH_KM",null,null,null,0,0]
["Gesamt: Summe von NUTZ_KM",null,null,null,223040.73400000003,223040.73400000003]
["Gesamt: Summe von SITZ_KM",null,null,null,0,0]
["Gesamt: Summe von STEH_KM",null,null,null,0,0]

{"sheet":"Grunddaten","index":2,"n_rows":136,"n_cols":30,"rows_kept":136,"cut":false,"hidden":false,"merged":[]}
["FP","BZWG","UNTERNEHMER","KOSTENTRAEGER","LIN","KURS","RICHTUNG","WT","FSCHL","ARTF","LANDKREIS","TG","WAGEN_KM","KOSTEN_KM","KOSTEN_STD","SITZ_KM","STEH_KM","AB","AN","FAHRZEIT","Ermittlung Fahrplanstunden","VB","VT","STRECKE_M","NUTZ_KM","LEER_KM","DIENST_NR","VERKEHRSTAGE","BUCH_UEBERSCHRIFT_NUMMER","BUCH_UEBERSCHRIFT_TEXT_1"]
["REG",18,"HEAG Verkehrs-GmbH",null,"089_",0,"H","Mo-Fr",600," ","Darmstadt","Solo-Überlandbus-NF",0,0,0,0,0,"2000-01-01T06:00:00","2000-01-01T06:13:42",2.3594444438349456,{"$f":"T2*24","v":56.626666652038693},"wz    - nicht 24. und 31.12.",248,6465,1603.32,0,0,"OlllllOOlOOOlOOlOOllOOlllllOOlllllOOlllllOOlllllOOlllllOOlllllOOlllllOOlllllOOlllllOOlllllOOlllllOOlllllOOlllllOOlllllOOllllOOOOllllOOlllOlOOlllllOOlllllOOlllllOOlllOlOOlllllOOOllllOOlllOlOOlllllOOlllllOOlllllOOlllllOOlllllOOlllllOOlllllOOlllllOOlllllOOlllllOOlllllOOlllllOOlllllOOlllllOOllllOOOlllllOOlllllOOlllllOOlllllOOlllllOOlllllOOlllllOOlllllOOlllllOOlllllO","NHX","Darmstadt Mathildenplatz # Georgenhausen #"]
["REG",18,"HEAG Verkehrs-GmbH",null,"089_",0,"H","Mo-Fr",600," ","Reinheim","Solo-Überlandbus-NF",0,0,0,0,0,"2000-01-01T06:13:42","2000-01-01T06:42:30",4.960000001010485,{"$f":"T3*24","v":119.04000002425164},"wz    - nicht 24. und 31.12.",248,14931,3702.8879999999999,0,0,"OlllllOOlOOOlOOlOOllOOlllllOOlllllOOlllllOOlllllOOlllllOOlllllOOlllllOOlllllOOlllllOOlllllOOlllllOOlllllOOlllllOOlllllOOllllOOOOllllOOlllOlOOlllllOOlllllOOlllllOOlllOlOOlllllOOOllllOOlllOlOOlllllOOlllllOOlllllOOlllllOOlllllOOlllllOOlllllOOlllllOOlllllOOlllllOOlllllOOlllllOOlllllOOlllllOOllllOOOlllllOOlllllOOlllllOOlllllOOlllllOOlllllOOlllllOOlllllOOlllllOOlllllO","NHX","Darmstadt Mathildenplatz # Georgenhausen #"]
["REG",18,"HEAG Verkehrs-GmbH",null,"089_",0,"H","Mo-Fr",600," ","Groß-Bieberau","Solo-Überlandbus-NF",0,0,0,0,0,"2000-01-01T06:42:30","2000-01-01T06:48:30",1.0333333330927417,24.7999999942258,"wz    - nicht 24. und 31.12.",248,3108,770.78399999999999,0,0,"OlllllOOlOOOlOOlOOllOOlllllOOlllllOOlllllOOlllllOOlllllOOlllllOOlllllOOlllllOOlllllOOlllllOOlllllOOlllllOOlllllOOlllllOOllllOOOOllllOOlllOlOOlllllOOlllllOOlllllOOlllOlOOlllllOOOllllOOlllOlOOlllllOOlllllOOlllllOOlllllOOlllllOOlllllOOlllllOOlllllOOlllllOOlllllOOlllllOOlllllOOlllllOOlllllOOllllOOOlllllOOlllllOOlllllOOlllllOOlllllOOlllllOOlllllOOlllllOOlllllOOlllllO","NHX","Darmstadt Mathildenplatz # Georgenhausen #"]
["REG",18,"HEAG Verkehrs-GmbH",null,"089_",0,"H","Mo-Fr",600," ","Fischbachtal","Solo-Überlandbus-NF",0,0,0,0,0,"2000-01-01T06:48:30","2000-01-01T06:53:00",0.775000000721775,18.6000000173226,"wz    - nicht 24. und 31.12.",248,2335,579.08000000000004,0,0,"OlllllOOlOOOlOOlOOllOOlllllOOlllllOOlllllOOlllllOOlllllOOlllllOOlllllOOlllllOOlllllOOlllllOOlllllOOlllllOOlllllOOlllllOOllllOOOOllllOOlllOlOOlllllOOlllllOOlllllOOlllOlOOlllllOOOllllOOlllOlOOlllllOOlllllOOlllllOOlllllOOlllllOOlllllOOlllllOOlllllOOlllllOOlllllOOlllllOOlllllOOlllllOOlllllOOllllOOOlllllOOlllllOOlllllOOlllllOOlllllOOlllllOOlllllOOlllllOOlllllOOlllllO","NHX","Darmstadt Mathildenplatz # Georgenhausen #"]
["REG",18,"HEAG Verkehrs-GmbH",null,"089_",0,"H","Mo-Fr",705," ","Darmstadt","Solo-Überlandbus-NF",0,0,0,0,0,"2000-01-01T07:05:00","2000-01-01T07:18:42",2.3594444438349456,56.626666652038693,"wz    - nicht 24. und 31.12.",248,6465,1603.32,0,0,"OlllllOOlOOOlOOlOOllOOlllllOOlllllOOlllllOOlllllOOlllllOOlllllOOlllllOOlllllOOlllllOOlllllOOlllllOOlllllOOlllllOOlllllOOllllOOOOllllOOlllOlOOlllllOOlllllOOlllllOOlllOlOOlllllOOOllllOOlllOlOOlllllOOlllllOOlllllOOlllllOOlllllOOlllllOOlllllOOlllllOOlllllOOlllllOOlllllOOlllllOOlllllOOlllllOOllllOOOlllllOOlllllOOlllllOOlllllOOlllllOOlllllOOlllllOOlllllOOlllllOOlllllO","NHX","Darmstadt Mathildenplatz # Georgenhausen #"]
["REG",18,"HEAG Verkehrs-GmbH",null,"089_",0,"H","Mo-Fr",705," ","Reinheim","Solo-Überlandbus-NF",0,0,0,0,0,"2000-01-01T07:18:42","2000-01-01T07:47:30",4.960000001010485,119.04000002425164,"wz    - nicht 24. und 31.12.",248,14931,3702.8879999999999,0,0,"OlllllOOlOOOlOOlOOllOOlllllOOlllllOOlllllOOlllllOOlllllOOlllllOOlllllOOlllllOOlllllOOlllllOOlllllOOlllllOOlllllOOlllllOOllllOOOOllllOOlllOlOOlllllOOlllllOOlllllOOlllOlOOlllllOOOllllOOlllOlOOlllllOOlllllOOlllllOOlllllOOlllllOOlllllOOlllllOOlllllOOlllllOOlllllOOlllllOOlllllOOlllllOOlllllOOllllOOOlllllOOlllllOOlllllOOlllllOOlllllOOlllllOOlllllOOlllllOOlllllOOlllllO","NHX","Darmstadt Mathildenplatz # Georgenhausen #"]
["REG",18,"HEAG Verkehrs-GmbH",null,"089_",0,"H","Mo-Fr",705," ","Groß-Bieberau","Solo-Überlandbus-NF",0,0,0,0,0,"2000-01-01T07:47:30","2000-01-01T07:53:30",1.0333333330927417,24.7999999942258,"wz    - nicht 24. und 31.12.",248,3108,770.78399999999999,0,0,"OlllllOOlOOOlOOlOOllOOlllllOOlllllOOlllllOOlllllOOlllllOOlllllOOlllllOOlllllOOlllllOOlllllOOlllllOOlllllOOlllllOOlllllOOllllOOOOllllOOlllOlOOlllllOOlllllOOlllllOOlllOlOOlllllOOOllllOOlllOlOOlllllOOlllllOOlllllOOlllllOOlllllOOlllllOOlllllOOlllllOOlllllOOlllllOOlllllOOlllllOOlllllOOlllllOOllllOOOlllllOOlllllOOlllllOOlllllOOlllllOOlllllOOlllllOOlllllOOlllllOOlllllO","NHX","Darmstadt Mathildenplatz # Georgenhausen #"]
["REG",18,"HEAG Verkehrs-GmbH",null,"089_",0,"H","Mo-Fr",705," ","Fischbachtal","Solo-Überlandbus-NF",0,0,0,0,0,"2000-01-01T07:53:30","2000-01-01T07:58:00",0.77499999891733751,18.5999999740161,"wz    - nicht 24. und 31.12.",248,2335,579.08000000000004,0,0,"OlllllOOlOOOlOOlOOllOOlllllOOlllllOOlllllOOlllllOOlllllOOlllllOOlllllOOlllllOOlllllOOlllllOOlllllOOlllllOOlllllOOlllllOOllllOOOOllllOOlllOlOOlllllOOlllllOOlllllOOlllOlOOlllllOOOllllOOlllOlOOlllllOOlllllOOlllllOOlllllOOlllllOOlllllOOlllllOOlllllOOlllllOOlllllOOlllllOOlllllOOlllllOOlllllOOllllOOOlllllOOlllllOOlllllOOlllllOOlllllOOlllllOOlllllOOlllllOOlllllOOlllllO","NHX","Darmstadt Mathildenplatz # Georgenhausen #"]
["REG",18,"HEAG Verkehrs-GmbH",null,"089_",0,"H","Mo-Fr",805," ","Darmstadt","Solo-Überlandbus-NF",0,0,0,0,0,"2000-01-01T08:05:00","2000-01-01T08:18:42",2.3594444438349456,56.626666652038693,"wz    - nicht 24. und 31.12.",248,6465,1603.32,0,0,"OlllllOOlOOOlOOlOOllOOlllllOOlllllOOlllllOOlllllOOlllllOOlllllOOlllllOOlllllOOlllllOOlllllOOlllllOOlllllOOlllllOOlllllOOllllOOOOllllOOlllOlOOlllllOOlllllOOlllllOOlllOlOOlllllOOOllllOOlllOlOOlllllOOlllllOOlllllOOlllllOOlllllOOlllllOOlllllOOlllllOOlllllOOlllllOOlllllOOlllllOOlllllOOlllllOOllllOOOlllllOOlllllOOlllllOOlllllOOlllllOOlllllOOlllllOOlllllOOlllllOOlllllO","NHX","Darmstadt Mathildenplatz # Georgenhausen #"]
["REG",18,"HEAG Verkehrs-GmbH",null,"089_",0,"H","Mo-Fr",805," ","Reinheim","Solo-Überlandbus-NF",0,0,0,0,0,"2000-01-01T08:18:42","2000-01-01T08:47:30",4.960000001010485,119.04000002425164,"wz    - nicht 24. und 31.12.",248,14931,3702.8879999999999,0,0,"OlllllOOlOOOlOOlOOllOOlllllOOlllllOOlllllOOlllllOOlllllOOlllllOOlllllOOlllllOOlllllOOlllllOOlllllOOlllllOOlllllOOlllllOOllllOOOOllllOOlllOlOOlllllOOlllllOOlllllOOlllOlOOlllllOOOllllOOlllOlOOlllllOOlllllOOlllllOOlllllOOlllllOOlllllOOlllllOOlllllOOlllllOOlllllOOlllllOOlllllOOlllllOOlllllOOllllOOOlllllOOlllllOOlllllOOlllllOOlllllOOlllllOOlllllOOlllllOOlllllOOlllllO","NHX","Darmstadt Mathildenplatz # Georgenhausen #"]
["REG",18,"HEAG Verkehrs-GmbH",null,"089_",0,"H","Mo-Fr",805," ","Groß-Bieberau","Solo-Überlandbus-NF",0,0,0,0,0,"2000-01-01T08:47:30","2000-01-01T08:53:30",1.0333333330927417,24.7999999942258,"wz    - nicht 24. und 31.12.",248,3108,770.78399999999999,0,0,"OlllllOOlOOOlOOlOOllOOlllllOOlllllOOlllllOOlllllOOlllllOOlllllOOlllllOOlllllOOlllllOOlllllOOlllllOOlllllOOlllllOOlllllOOllllOOOOllllOOlllOlOOlllllOOlllllOOlllllOOlllOlOOlllllOOOllllOOlllOlOOlllllOOlllllOOlllllOOlllllOOlllllOOlllllOOlllllOOlllllOOlllllOOlllllOOlllllOOlllllOOlllllOOlllllOOllllOOOlllllOOlllllOOlllllOOlllllOOlllllOOlllllOOlllllOOlllllOOlllllOOlllllO","NHX","Darmstadt Mathildenplatz # Georgenhausen #"]
["REG",18,"HEAG Verkehrs-GmbH",null,"089_",0,"H","Mo-Fr",805," ","Fischbachtal","Solo-Überlandbus-NF",0,0,0,0,0,"2000-01-01T08:53:30","2000-01-01T08:58:00",0.775000000721775,18.6000000173226,"wz    - nicht 24. und 31.12.",248,2335,579.08000000000004,0,0,"OlllllOOlOOOlOOlOOllOOlllllOOlllllOOlllllOOlllllOOlllllOOlllllOOlllllOOlllllOOlllllOOlllllOOlllllOOlllllOOlllllOOlllllOOllllOOOOllllOOlllOlOOlllllOOlllllOOlllllOOlllOlOOlllllOOOllllOOlllOlOOlllllOOlllllOOlllllOOlllllOOlllllOOlllllOOlllllOOlllllOOlllllOOlllllOOlllllOOlllllOOlllllOOlllllOOllllOOOlllllOOlllllOOlllllOOlllllOOlllllOOlllllOOlllllOOlllllOOlllllOOlllllO","NHX","Darmstadt Mathildenplatz # Georgenhausen #"]
["REG",18,"HEAG Verkehrs-GmbH",null,"089_",0,"H","Mo-Fr",905," ","Darmstadt","Solo-Überlandbus-NF",0,0,0,0,0,"2000-01-01T09:05:00","2000-01-01T09:18:42",2.359444445639383,56.626666695345193,"wz    - nicht 24. und 31.12.",248,6465,1603.32,0,0,"OlllllOOlOOOlOOlOOllOOlllllOOlllllOOlllllOOlllllOOlllllOOlllllOOlllllOOlllllOOlllllOOlllllOOlllllOOlllllOOlllllOOlllllOOllllOOOOllllOOlllOlOOlllllOOlllllOOlllllOOlllOlOOlllllOOOllllOOlllOlOOlllllOOlllllOOlllllOOlllllOOlllllOOlllllOOlllllOOlllllOOlllllOOlllllOOlllllOOlllllOOlllllOOlllllOOllllOOOlllllOOlllllOOlllllOOlllllOOlllllOOlllllOOlllllOOlllllOOlllllOOlllllO","NHX","Darmstadt Mathildenplatz # Georgenhausen #"]
["REG",18,"HEAG Verkehrs-GmbH",null,"089_",0,"H","Mo-Fr",905," ","Reinheim","Solo-Überlandbus-NF",0,0,0,0,0,"2000-01-01T09:18:42","2000-01-01T09:47:30",4.9599999992060475,119.03999998094514,"wz    - nicht 24. und 31.12.",248,14931,3702.8879999999999,0,0,"OlllllOOlOOOlOOlOOllOOlllllOOlllllOOlllllOOlllllOOlllllOOlllllOOlllllOOlllllOOlllllOOlllllOOlllllOOlllllOOlllllOOlllllOOllllOOOOllllOOlllOlOOlllllOOlllllOOlllllOOlllOlOOlllllOOOllllOOlllOlOOlllllOOlllllOOlllllOOlllllOOlllllOOlllllOOlllllOOlllllOOlllllOOlllllOOlllllOOlllllOOlllllOOlllllOOllllOOOlllllOOlllllOOlllllOOlllllOOlllllOOlllllOOlllllOOlllllOOlllllOOlllllO","NHX","Darmstadt Mathildenplatz # Georgenhausen #"]
["REG",18,"HEAG Verkehrs-GmbH",null,"089_",0,"H","Mo-Fr",905," ","Groß-Bieberau","Solo-Überlandbus-NF",0,0,0,0,0,"2000-01-01T09:47:30","2000-01-01T09:53:30",1.0333333330927417,24.7999999942258,"wz    - nicht 24. und 31.12.",248,3108,770.78399999999999,0,0,"OlllllOOlOOOlOOlOOllOOlllllOOlllllOOlllllOOlllllOOlllllOOlllllOOlllllOOlllllOOlllllOOlllllOOlllllOOlllllOOlllllOOlllllOOllllOOOOllllOOlllOlOOlllllOOlllllOOlllllOOlllOlOOlllllOOOllllOOlllOlOOlllllOOlllllOOlllllOOlllllOOlllllOOlllllOOlllllOOlllllOOlllllOOlllllOOlllllOOlllllOOlllllOOlllllOOllllOOOlllllOOlllllOOlllllOOlllllOOlllllOOlllllOOlllllOOlllllOOlllllOOlllllO","NHX","Darmstadt Mathildenplatz # Georgenhausen #"]
["REG",18,"HEAG Verkehrs-GmbH",null,"089_",0,"H","Mo-Fr",905," ","Fischbachtal","Solo-Überlandbus-NF",0,0,0,0,0,"2000-01-01T09:53:30","2000-01-01T09:58:00",0.775000000721775,18.6000000173226,"wz    - nicht 24. und 31.12.",248,2335,579.08000000000004,0,0,"OlllllOOlOOOlOOlOOllOOlllllOOlllllOOlllllOOlllllOOlllllOOlllllOOlllllOOlllllOOlllllOOlllllOOlllllOOlllllOOlllllOOlllllOOllllOOOOllllOOlllOlOOlllllOOlllllOOlllllOOlllOlOOlllllOOOllllOOlllOlOOlllllOOlllllOOlllllOOlllllOOlllllOOlllllOOlllllOOlllllOOlllllOOlllllOOlllllOOlllllOOlllllOOlllllOOllllOOOlllllOOlllllOOlllllOOlllllOOlllllOOlllllOOlllllOOlllllOOlllllOOlllllO","NHX","Darmstadt Mathildenplatz # Georgenhausen #"]
["REG",18,"HEAG Verkehrs-GmbH",null,"089_",0,"H","Mo-Fr",1005," ","Darmstadt","Solo-Überlandbus-NF",0,0,0,0,0,"2000-01-01T10:05:00","2000-01-01T10:18:42",2.3594444438349456,56.626666652038693,"wz    - nicht 24. und 31.12.",248,6465,1603.32,0,0,"OlllllOOlOOOlOOlOOllOOlllllOOlllllOOlllllOOlllllOOlllllOOlllllOOlllllOOlllllOOlllllOOlllllOOlllllOOlllllOOlllllOOlllllOOllllOOOOllllOOlllOlOOlllllOOlllllOOlllllOOlllOlOOlllllOOOllllOOlllOlOOlllllOOlllllOOlllllOOlllllOOlllllOOlllllOOlllllOOlllllOOlllllOOlllllOOlllllOOlllllOOlllllOOlllllOOllllOOOlllllOOlllllOOlllllOOlllllOOlllllOOlllllOOlllllOOlllllOOlllllOOlllllO","NHX","Darmstadt Mathildenplatz # Georgenhausen #"]
["REG",18,"HEAG Verkehrs-GmbH",null,"089_",0,"H","Mo-Fr",1005," ","Reinheim","Solo-Überlandbus-NF",0,0,0,0,0,"2000-01-01T10:18:42","2000-01-01T10:47:30",4.960000001010485,119.04000002425164,"wz    - nicht 24. und 31.12.",248,14931,3702.8879999999999,0,0,"OlllllOOlOOOlOOlOOllOOlllllOOlllllOOlllllOOlllllOOlllllOOlllllOOlllllOOlllllOOlllllOOlllllOOlllllOOlllllOOlllllOOlllllOOllllOOOOllllOOlllOlOOlllllOOlllllOOlllllOOlllOlOOlllllOOOllllOOlllOlOOlllllOOlllllOOlllllOOlllllOOlllllOOlllllOOlllllOOlllllOOlllllOOlllllOOlllllOOlllllOOlllllOOlllllOOllllOOOlllllOOlllllOOlllllOOlllllOOlllllOOlllllOOlllllOOlllllOOlllllOOlllllO","NHX","Darmstadt Mathildenplatz # Georgenhausen #"]
["REG",18,"HEAG Verkehrs-GmbH",null,"089_",0,"H","Mo-Fr",1005," ","Groß-Bieberau","Solo-Überlandbus-NF",0,0,0,0,0,"2000-01-01T10:47:30","2000-01-01T10:53:30",1.0333333330927417,24.7999999942258,"wz    - nicht 24. und 31.12.",248,3108,770.78399999999999,0,0,"OlllllOOlOOOlOOlOOllOOlllllOOlllllOOlllllOOlllllOOlllllOOlllllOOlllllOOlllllOOlllllOOlllllOOlllllOOlllllOOlllllOOlllllOOllllOOOOllllOOlllOlOOlllllOOlllllOOlllllOOlllOlOOlllllOOOllllOOlllOlOOlllllOOlllllOOlllllOOlllllOOlllllOOlllllOOlllllOOlllllOOlllllOOlllllOOlllllOOlllllOOlllllOOlllllOOllllOOOlllllOOlllllOOlllllOOlllllOOlllllOOlllllOOlllllOOlllllOOlllllOOlllllO","NHX","Darmstadt Mathildenplatz # Georgenhausen #"]
["REG",18,"HEAG Verkehrs-GmbH",null,"089_",0,"H","Mo-Fr",1005," ","Fischbachtal","Solo-Überlandbus-NF",0,0,0,0,0,"2000-01-01T10:53:30","2000-01-01T10:58:00",0.77499999891733751,18.5999999740161,"wz    - nicht 24. und 31.12.",248,2335,579.08000000000004,0,0,"OlllllOOlOOOlOOlOOllOOlllllOOlllllOOlllllOOlllllOOlllllOOlllllOOlllllOOlllllOOlllllOOlllllOOlllllOOlllllOOlllllOOlllllOOllllOOOOllllOOlllOlOOlllllOOlllllOOlllllOOlllOlOOlllllOOOllllOOlllOlOOlllllOOlllllOOlllllOOlllllOOlllllOOlllllOOlllllOOlllllOOlllllOOlllllOOlllllOOlllllOOlllllOOlllllOOllllOOOlllllOOlllllOOlllllOOlllllOOlllllOOlllllOOlllllOOlllllOOlllllOOlllllO","NHX","Darmstadt Mathildenplatz # Georgenhausen #"]
["REG",18,"HEAG Verkehrs-GmbH",null,"089_",0,"H","Mo-Fr",1105," ","Darmstadt","Solo-Überlandbus-NF",0,0,0,0,0,"2000-01-01T11:05:00","2000-01-01T11:18:42",2.3594444438349456,56.626666652038693,"wz    - nicht 24. und 31.12.",248,6465,1603.32,0,0,"OlllllOOlOOOlOOlOOllOOlllllOOlllllOOlllllOOlllllOOlllllOOlllllOOlllllOOlllllOOlllllOOlllllOOlllllOOlllllOOlllllOOlllllOOllllOOOOllllOOlllOlOOlllllOOlllllOOlllllOOlllOlOOlllllOOOllllOOlllOlOOlllllOOlllllOOlllllOOlllllOOlllllOOlllllOOlllllOOlllllOOlllllOOlllllOOlllllOOlllllOOlllllOOlllllOOllllOOOlllllOOlllllOOlllllOOlllllOOlllllOOlllllOOlllllOOlllllOOlllllOOlllllO","NHX","Darmstadt Mathildenplatz # Georgenhausen #"]
["REG",18,"HEAG Verkehrs-GmbH",null,"089_",0,"H","Mo-Fr",1105," ","Reinheim","Solo-Überlandbus-NF",0,0,0,0,0,"2000-01-01T11:18:42","2000-01-01T11:47:30",4.960000001010485,119.04000002425164,"wz    - nicht 24. und 31.12.",248,14931,3702.8879999999999,0,0,"OlllllOOlOOOlOOlOOllOOlllllOOlllllOOlllllOOlllllOOlllllOOlllllOOlllllOOlllllOOlllllOOlllllOOlllllOOlllllOOlllllOOlllllOOllllOOOOllllOOlllOlOOlllllOOlllllOOlllllOOlllOlOOlllllOOOllllOOlllOlOOlllllOOlllllOOlllllOOlllllOOlllllOOlllllOOlllllOOlllllOOlllllOOlllllOOlllllOOlllllOOlllllOOlllllOOllllOOOlllllOOlllllOOlllllOOlllllOOlllllOOlllllOOlllllOOlllllOOlllllOOlllllO","NHX","Darmstadt Mathildenplatz # Georgenhausen #"]
["REG",18,"HEAG Verkehrs-GmbH",null,"089_",0,"H","Mo-Fr",1105," ","Groß-Bieberau","Solo-Überlandbus-NF",0,0,0,0,0,"2000-01-01T11:47:30","2000-01-01T11:53:30",1.0333333330927417,24.7999999942258,"wz    - nicht 24. und 31.12.",248,3108,770.78399999999999,0,0,"OlllllOOlOOOlOOlOOllOOlllllOOlllllOOlllllOOlllllOOlllllOOlllllOOlllllOOlllllOOlllllOOlllllOOlllllOOlllllOOlllllOOlllllOOllllOOOOllllOOlllOlOOlllllOOlllllOOlllllOOlllOlOOlllllOOOllllOOlllOlOOlllllOOlllllOOlllllOOlllllOOlllllOOlllllOOlllllOOlllllOOlllllOOlllllOOlllllOOlllllOOlllllOOlllllOOllllOOOlllllOOlllllOOlllllOOlllllOOlllllOOlllllOOlllllOOlllllOOlllllOOlllllO","NHX","Darmstadt Mathildenplatz # Georgenhausen #"]
["REG",18,"HEAG Verkehrs-GmbH",null,"089_",0,"H","Mo-Fr",1105," ","Fischbachtal","Solo-Überlandbus-NF",0,0,0,0,0,"2000-01-01T11:53:30","2000-01-01T11:58:00",0.775000000721775,18.6000000173226,"wz    - nicht 24. und 31.12.",248,2335,579.08000000000004,0,0,"OlllllOOlOOOlOOlOOllOOlllllOOlllllOOlllllOOlllllOOlllllOOlllllOOlllllOOlllllOOlllllOOlllllOOlllllOOlllllOOlllllOOlllllOOllllOOOOllllOOlllOlOOlllllOOlllllOOlllllOOlllOlOOlllllOOOllllOOlllOlOOlllllOOlllllOOlllllOOlllllOOlllllOOlllllOOlllllOOlllllOOlllllOOlllllOOlllllOOlllllOOlllllOOlllllOOllllOOOlllllOOlllllOOlllllOOlllllOOlllllOOlllllOOlllllOOlllllOOlllllOOlllllO","NHX","Darmstadt Mathildenplatz # Georgenhausen #"]
["REG",18,"HEAG Verkehrs-GmbH",null,"089_",0,"H","Mo-Fr",1220," ","Darmstadt","Solo-Überlandbus-NF",0,0,0,0,0,"2000-01-01T12:05:00","2000-01-01T12:18:42",2.359444445639383,56.626666695345193,"wz    - nicht 24. und 31.12.",248,6465,1603.32,0,0,"OlllllOOlOOOlOOlOOllOOlllllOOlllllOOlllllOOlllllOOlllllOOlllllOOlllllOOlllllOOlllllOOlllllOOlllllOOlllllOOlllllOOlllllOOllllOOOOllllOOlllOlOOlllllOOlllllOOlllllOOlllOlOOlllllOOOllllOOlllOlOOlllllOOlllllOOlllllOOlllllOOlllllOOlllllOOlllllOOlllllOOlllllOOlllllOOlllllOOlllllOOlllllOOlllllOOllllOOOlllllOOlllllOOlllllOOlllllOOlllllOOlllllOOlllllOOlllllOOlllllOOlllllO","NHX","Darmstadt Mathildenplatz # Georgenhausen #"]
["REG",18,"HEAG Verkehrs-GmbH",null,"089_",0,"H","Mo-Fr",1220," ","Reinheim","Solo-Überlandbus-NF",0,0,0,0,0,"2000-01-01T12:18:42","2000-01-01T12:47:30",4.9599999992060475,119.03999998094514,"wz    - nicht 24. und 31.12.",248,14931,3702.8879999999999,0,0,"OlllllOOlOOOlOOlOOllOOlllllOOlllllOOlllllOOlllllOOlllllOOlllllOOlllllOOlllllOOlllllOOlllllOOlllllOOlllllOOlllllOOlllllOOllllOOOOllllOOlllOlOOlllllOOlllllOOlllllOOlllOlOOlllllOOOllllOOlllOlOOlllllOOlllllOOlllllOOlllllOOlllllOOlllllOOlllllOOlllllOOlllllOOlllllOOlllllOOlllllOOlllllOOlllllOOllllOOOlllllOOlllllOOlllllOOlllllOOlllllOOlllllOOlllllOOlllllOOlllllOOlllllO","NHX","Darmstadt Mathildenplatz # Georgenhausen #"]
["REG",18,"HEAG Verkehrs-GmbH",null,"089_",0,"H","Mo-Fr",1220," ","Groß-Bieberau","Solo-Überlandbus-NF",0,0,0,0,0,"2000-01-01T12:47:30","2000-01-01T12:53:30",1.0333333330927417,24.7999999942258,"wz    - nicht 24. und 31.12.",248,3108,770.78399999999999,0,0,"OlllllOOlOOOlOOlOOllOOlllllOOlllllOOlllllOOlllllOOlllllOOlllllOOlllllOOlllllOOlllllOOlllllOOlllllOOlllllOOlllllOOlllllOOllllOOOOllllOOlllOlOOlllllOOlllllOOlllllOOlllOlOOlllllOOOllllOOlllOlOOlllllOOlllllOOlllllOOlllllOOlllllOOlllllOOlllllOOlllllOOlllllOOlllllOOlllllOOlllllOOlllllOOlllllOOllllOOOlllllOOlllllOOlllllOOlllllOOlllllOOlllllOOlllllOOlllllOOlllllOOlllllO","NHX","Darmstadt Mathildenplatz # Georgenhausen #"]
["REG",18,"HEAG Verkehrs-GmbH",null,"089_",0,"H","Mo-Fr",1220," ","Fischbachtal","Solo-Überlandbus-NF",0,0,0,0,0,"2000-01-01T12:53:30","2000-01-01T12:58:00",0.775000000721775,18.6000000173226,"wz    - nicht 24. und 31.12.",248,2335,579.08000000000004,0,0,"OlllllOOlOOOlOOlOOllOOlllllOOlllllOOlllllOOlllllOOlllllOOlllllOOlllllOOlllllOOlllllOOlllllOOlllllOOlllllOOlllllOOlllllOOllllOOOOllllOOlllOlOOlllllOOlllllOOlllllOOlllOlOOlllllOOOllllOOlllOlOOlllllOOlllllOOlllllOOlllllOOlllllOOlllllOOlllllOOlllllOOlllllOOlllllOOlllllOOlllllOOlllllOOlllllOOllllOOOlllllOOlllllOOlllllOOlllllOOlllllOOlllllOOlllllOOlllllOOlllllOOlllllO","NHX","Darmstadt Mathildenplatz # Georgenhausen #"]
["REG",18,"HEAG Verkehrs-GmbH",null,"089_",0,"H","Mo-Fr",1305," ","Darmstadt","Solo-Überlandbus-NF",0,0,0,0,0,"2000-01-01T13:05:00","2000-01-01T13:18:42",2.3594444438349456,56.626666652038693,"wz    - nicht 24. und 31.12.",248,6465,1603.32,0,0,"OlllllOOlOOOlOOlOOllOOlllllOOlllllOOlllllOOlllllOOlllllOOlllllOOlllllOOlllllOOlllllOOlllllOOlllllOOlllllOOlllllOOlllllOOllllOOOOllllOOlllOlOOlllllOOlllllOOlllllOOlllOlOOlllllOOOllllOOlllOlOOlllllOOlllllOOlllllOOlllllOOlllllOOlllllOOlllllOOlllllOOlllllOOlllllOOlllllOOlllllOOlllllOOlllllOOllllOOOlllllOOlllllOOlllllOOlllllOOlllllOOlllllOOlllllOOlllllOOlllllOOlllllO","NHX","Darmstadt Mathildenplatz # Georgenhausen #"]
["REG",18,"HEAG Verkehrs-GmbH",null,"089_",0,"H","Mo-Fr",1305," ","Reinheim","Solo-Überlandbus-NF",0,0,0,0,0,"2000-01-01T13:18:42","2000-01-01T13:47:30",4.960000001010485,119.04000002425164,"wz    - nicht 24. und 31.12.",248,14931,3702.8879999999999,0,0,"OlllllOOlOOOlOOlOOllOOlllllOOlllllOOlllllOOlllllOOlllllOOlllllOOlllllOOlllllOOlllllOOlllllOOlllllOOlllllOOlllllOOlllllOOllllOOOOllllOOlllOlOOlllllOOlllllOOlllllOOlllOlOOlllllOOOllllOOlllOlOOlllllOOlllllOOlllllOOlllllOOlllllOOlllllOOlllllOOlllllOOlllllOOlllllOOlllllOOlllllOOlllllOOlllllOOllllOOOlllllOOlllllOOlllllOOlllllOOlllllOOlllllOOlllllOOlllllOOlllllOOlllllO","NHX","Darmstadt Mathildenplatz # Georgenhausen #"]
["REG",18,"HEAG Verkehrs-GmbH",null,"089_",0,"H","Mo-Fr",1305," ","Groß-Bieberau","Solo-Überlandbus-NF",0,0,0,0,0,"2000-01-01T13:47:30","2000-01-01T13:53:30",1.0333333330927417,24.7999999942258,"wz    - nicht 24. und 31.12.",248,3108,770.78399999999999,0,0,"OlllllOOlOOOlOOlOOllOOlllllOOlllllOOlllllOOlllllOOlllllOOlllllOOlllllOOlllllOOlllllOOlllllOOlllllOOlllllOOlllllOOlllllOOllllOOOOllllOOlllOlOOlllllOOlllllOOlllllOOlllOlOOlllllOOOllllOOlllOlOOlllllOOlllllOOlllllOOlllllOOlllllOOlllllOOlllllOOlllllOOlllllOOlllllOOlllllOOlllllOOlllllOOlllllOOllllOOOlllllOOlllllOOlllllOOlllllOOlllllOOlllllOOlllllOOlllllOOlllllOOlllllO","NHX","Darmstadt Mathildenplatz # Georgenhausen #"]
["REG",18,"HEAG Verkehrs-GmbH",null,"089_",0,"H","Mo-Fr",1305," ","Fischbachtal","Solo-Überlandbus-NF",0,0,0,0,0,"2000-01-01T13:53:30","2000-01-01T13:58:00",0.77499999891733751,18.5999999740161,"wz    - nicht 24. und 31.12.",248,2335,579.08000000000004,0,0,"OlllllOOlOOOlOOlOOllOOlllllOOlllllOOlllllOOlllllOOlllllOOlllllOOlllllOOlllllOOlllllOOlllllOOlllllOOlllllOOlllllOOlllllOOllllOOOOllllOOlllOlOOlllllOOlllllOOlllllOOlllOlOOlllllOOOllllOOlllOlOOlllllOOlllllOOlllllOOlllllOOlllllOOlllllOOlllllOOlllllOOlllllOOlllllOOlllllOOlllllOOlllllOOlllllOOllllOOOlllllOOlllllOOlllllOOlllllOOlllllOOlllllOOlllllOOlllllOOlllllOOlllllO","NHX","Darmstadt Mathildenplatz # Georgenhausen #"]
["REG",18,"HEAG Verkehrs-GmbH",null,"089_",0,"H","Mo-Fr",1318," ","Groß-Bieberau","Solo-Überlandbus-NF",0,0,0,0,0,"2000-01-01T13:18:00","2000-01-01T13:24:30",0.87569444447581191,21.016666667419486,"09    - nur an Schultagen; wz    - nicht 24. und 31.12.",194,2813,545.72199999999998,0,0,"OlllllOOOOOOOOOOOOOOOOlllllOOlllllOOlllllOOlllllOOlllllOOlllllOOlllllOOlllllOOlllllOOlllllOOlllllOOlllllOOlllllOOOOOOOOOOOOOOOOOllllOOlllOlOOlllllOOlllllOOlllllOOlllOlOOlllllOOOllllOOlllOlOOlllllOOlllllOOOOOOOOOOOOOOOOOOOOOOOOOOOOOOOOOOOOOOOOOOOOlllllOOlllllOOlllllOOlllllOOlllllOOlllllOOllllOOOOOOOOOOOOOOOOOlllllOOlllllOOlllllOOlllllOOlllllOOlllllOOlllllOOlllllO","NHX","Darmstadt Mathildenplatz # Georgenhausen #"]
["REG",18,"HEAG Verkehrs-GmbH",null,"089_",0,"H","Mo-Fr",1318," ","Fischbachtal","Solo-Überlandbus-NF",0,0,0,0,0,"2000-01-01T13:24:30","2000-01-01T13:29:00",0.60624999915307853,14.549999979673885,"09    - nur an Schultagen; wz    - nicht 24. und 31.12.",194,2335,452.99,0,0,"OlllllOOOOOOOOOOOOOOOOlllllOOlllllOOlllllOOlllllOOlllllOOlllllOOlllllOOlllllOOlllllOOlllllOOlllllOOlllllOOlllllOOOOOOOOOOOOOOOOOllllOOlllOlOOlllllOOlllllOOlllllOOlllOlOOlllllOOOllllOOlllOlOOlllllOOlllllOOOOOOOOOOOOOOOOOOOOOOOOOOOOOOOOOOOOOOOOOOOOlllllOOlllllOOlllllOOlllllOOlllllOOlllllOOllllOOOOOOOOOOOOOOOOOlllllOOlllllOOlllllOOlllllOOlllllOOlllllOOlllllOOlllllO","NHX","Darmstadt Mathildenplatz # Georgenhausen #"]
["REG",18,"HEAG Verkehrs-GmbH",null,"089_",0,"H","Mo-Fr",1405," ","Darmstadt","Solo-Überlandbus-NF",0,0,0,0,0,"2000-01-01T14:05:00","2000-01-01T14:18:42",2.3594444438349456,56.626666652038693,"wz    - nicht 24. und 31.12.",248,6465,1603.32,0,0,"OlllllOOlOOOlOOlOOllOOlllllOOlllllOOlllllOOlllllOOlllllOOlllllOOlllllOOlllllOOlllllOOlllllOOlllllOOlllllOOlllllOOlllllOOllllOOOOllllOOlllOlOOlllllOOlllllOOlllllOOlllOlOOlllllOOOllllOOlllOlOOlllllOOlllllOOlllllOOlllllOOlllllOOlllllOOlllllOOlllllOOlllllOOlllllOOlllllOOlllllOOlllllOOlllllOOllllOOOlllllOOlllllOOlllllOOlllllOOlllllOOlllllOOlllllOOlllllOOlllllOOlllllO","NHX","Darmstadt Mathildenplatz # Georgenhausen #"]
["REG",18,"HEAG Verkehrs-GmbH",null,"089_",0,"H","Mo-Fr",1405," ","Reinheim","Solo-Überlandbus-NF",0,0,0,0,0,"2000-01-01T14:18:42","2000-01-01T14:47:30",4.960000001010485,119.04000002425164,"wz    - nicht 24. und 31.12.",248,14931,3702.8879999999999,0,0,"OlllllOOlOOOlOOlOOllOOlllllOOlllllOOlllllOOlllllOOlllllOOlllllOOlllllOOlllllOOlllllOOlllllOOlllllOOlllllOOlllllOOlllllOOllllOOOOllllOOlllOlOOlllllOOlllllOOlllllOOlllOlOOlllllOOOllllOOlllOlOOlllllOOlllllOOlllllOOlllllOOlllllOOlllllOOlllllOOlllllOOlllllOOlllllOOlllllOOlllllOOlllllOOlllllOOllllOOOlllllOOlllllOOlllllOOlllllOOlllllOOlllllOOlllllOOlllllOOlllllOOlllllO","NHX","Darmstadt Mathildenplatz # Georgenhausen #"]
["REG",18,"HEAG Verkehrs-GmbH",null,"089_",0,"H","Mo-Fr",1405," ","Groß-Bieberau","Solo-Überlandbus-NF",0,0,0,0,0,"2000-01-01T14:47:30","2000-01-01T14:53:30",1.0333333330927417,24.7999999942258,"wz    - nicht 24. und 31.12.",248,3108,770.78399999999999,0,0,"OlllllOOlOOOlOOlOOllOOlllllOOlllllOOlllllOOlllllOOlllllOOlllllOOlllllOOlllllOOlllllOOlllllOOlllllOOlllllOOlllllOOlllllOOllllOOOOllllOOlllOlOOlllllOOlllllOOlllllOOlllOlOOlllllOOOllllOOlllOlOOlllllOOlllllOOlllllOOlllllOOlllllOOlllllOOlllllOOlllllOOlllllOOlllllOOlllllOOlllllOOlllllOOlllllOOllllOOOlllllOOlllllOOlllllOOlllllOOlllllOOlllllOOlllllOOlllllOOlllllOOlllllO","NHX","Darmstadt Mathildenplatz # Georgenhausen #"]
["REG",18,"HEAG Verkehrs-GmbH",null,"089_",0,"H","Mo-Fr",1405," ","Fischbachtal","Solo-Überlandbus-NF",0,0,0,0,0,"2000-01-01T14:53:30","2000-01-01T14:58:00",0.775000000721775,18.6000000173226,"wz    - nicht 24. und 31.12.",248,2335,579.08000000000004,0,0,"OlllllOOlOOOlOOlOOllOOlllllOOlllllOOlllllOOlllllOOlllllOOlllllOOlllllOOlllllOOlllllOOlllllOOlllllOOlllllOOlllllOOlllllOOllllOOOOllllOOlllOlOOlllllOOlllllOOlllllOOlllOlOOlllllOOOllllOOlllOlOOlllllOOlllllOOlllllOOlllllOOlllllOOlllllOOlllllOOlllllOOlllllOOlllllOOlllllOOlllllOOlllllOOlllllOOllllOOOlllllOOlllllOOlllllOOlllllOOlllllOOlllllOOlllllOOlllllOOlllllOOlllllO","NHX","Darmstadt Mathildenplatz # Georgenhausen #"]
["REG",18,"HEAG Verkehrs-GmbH",null,"089_",0,"H","Mo-Fr",1505," ","Darmstadt","Solo-Überlandbus-NF",0,0,0,0,0,"2000-01-01T15:05:00","2000-01-01T15:18:42",2.359444445639383,56.626666695345193,"wz    - nicht 24. und 31.12.",248,6465,1603.32,0,0,"OlllllOOlOOOlOOlOOllOOlllllOOlllllOOlllllOOlllllOOlllllOOlllllOOlllllOOlllllOOlllllOOlllllOOlllllOOlllllOOlllllOOlllllOOllllOOOOllllOOlllOlOOlllllOOlllllOOlllllOOlllOlOOlllllOOOllllOOlllOlOOlllllOOlllllOOlllllOOlllllOOlllllOOlllllOOlllllOOlllllOOlllllOOlllllOOlllllOOlllllOOlllllOOlllllOOllllOOOlllllOOlllllOOlllllOOlllllOOlllllOOlllllOOlllllOOlllllOOlllllOOlllllO","NHX","Darmstadt Mathildenplatz # Georgenhausen #"]
["REG",18,"HEAG Verkehrs-GmbH",null,"089_",0,"H","Mo-Fr",1505," ","Reinheim","Solo-Überlandbus-NF",0,0,0,0,0,"2000-01-01T15:18:42","2000-01-01T15:47:30",4.9599999992060475,119.03999998094514,"wz    - nicht 24. und 31.12.",248,14931,3702.8879999999999,0,0,"OlllllOOlOOOlOOlOOllOOlllllOOlllllOOlllllOOlllllOOlllllOOlllllOOlllllOOlllllOOlllllOOlllllOOlllllOOlllllOOlllllOOlllllOOllllOOOOllllOOlllOlOOlllllOOlllllOOlllllOOlllOlOOlllllOOOllllOOlllOlOOlllllOOlllllOOlllllOOlllllOOlllllOOlllllOOlllllOOlllllOOlllllOOlllllOOlllllOOlllllOOlllllOOlllllOOllllOOOlllllOOlllllOOlllllOOlllllOOlllllOOlllllOOlllllOOlllllOOlllllOOlllllO","NHX","Darmstadt Mathildenplatz # Georgenhausen #"]
["REG",18,"HEAG Verkehrs-GmbH",null,"089_",0,"H","Mo-Fr",1505," ","Groß-Bieberau","Solo-Überlandbus-NF",0,0,0,0,0,"2000-01-01T15:47:30","2000-01-01T15:53:30",1.0333333330927417,24.7999999942258,"wz    - nicht 24. und 31.12.",248,3108,770.78399999999999,0,0,"OlllllOOlOOOlOOlOOllOOlllllOOlllllOOlllllOOlllllOOlllllOOlllllOOlllllOOlllllOOlllllOOlllllOOlllllOOlllllOOlllllOOlllllOOllllOOOOllllOOlllOlOOlllllOOlllllOOlllllOOlllOlOOlllllOOOllllOOlllOlOOlllllOOlllllOOlllllOOlllllOOlllllOOlllllOOlllllOOlllllOOlllllOOlllllOOlllllOOlllllOOlllllOOlllllOOllllOOOlllllOOlllllOOlllllOOlllllOOlllllOOlllllOOlllllOOlllllOOlllllOOlllllO","NHX","Darmstadt Mathildenplatz # Georgenhausen #"]
["REG",18,"HEAG Verkehrs-GmbH",null,"089_",0,"H","Mo-Fr",1505," ","Fischbachtal","Solo-Überlandbus-NF",0,0,0,0,0,"2000-01-01T15:53:30","2000-01-01T15:58:00",0.775000000721775,18.6000000173226,"wz    - nicht 24. und 31.12.",248,2335,579.08000000000004,0,0,"OlllllOOlOOOlOOlOOllOOlllllOOlllllOOlllllOOlllllOOlllllOOlllllOOlllllOOlllllOOlllllOOlllllOOlllllOOlllllOOlllllOOlllllOOllllOOOOllllOOlllOlOOlllllOOlllllOOlllllOOlllOlOOlllllOOOllllOOlllOlOOlllllOOlllllOOlllllOOlllllOOlllllOOlllllOOlllllOOlllllOOlllllOOlllllOOlllllOOlllllOOlllllOOlllllOOllllOOOlllllOOlllllOOlllllOOlllllOOlllllOOlllllOOlllllOOlllllOOlllllOOlllllO","NHX","Darmstadt Mathildenplatz # Georgenhausen #"]
["REG",18,"HEAG Verkehrs-GmbH",null,"089_",0,"H","Mo-Fr",1605," ","Darmstadt","Solo-Überlandbus-NF",0,0,0,0,0,"2000-01-01T16:05:00","2000-01-01T16:18:42",2.3594444438349456,56.626666652038693,"wz    - nicht 24. und 31.12.",248,6465,1603.32,0,0,"OlllllOOlOOOlOOlOOllOOlllllOOlllllOOlllllOOlllllOOlllllOOlllllOOlllllOOlllllOOlllllOOlllllOOlllllOOlllllOOlllllOOlllllOOllllOOOOllllOOlllOlOOlllllOOlllllOOlllllOOlllOlOOlllllOOOllllOOlllOlOOlllllOOlllllOOlllllOOlllllOOlllllOOlllllOOlllllOOlllllOOlllllOOlllllOOlllllOOlllllOOlllllOOlllllOOllllOOOlllllOOlllllOOlllllOOlllllOOlllllOOlllllOOlllllOOlllllOOlllllOOlllllO","NHX","Darmstadt Mathildenplatz # Georgenhausen #"]
["REG",18,"HEAG Verkehrs-GmbH",null,"089_",0,"H","Mo-Fr",1605," ","Reinheim","Solo-Überlandbus-NF",0,0,0,0,0,"2000-01-01T16:18:42","2000-01-01T16:47:30",4.960000001010485,119.04000002425164,"wz    - nicht 24. und 31.12.",248,14931,3702.8879999999999,0,0,"OlllllOOlOOOlOOlOOllOOlllllOOlllllOOlllllOOlllllOOlllllOOlllllOOlllllOOlllllOOlllllOOlllllOOlllllOOlllllOOlllllOOlllllOOllllOOOOllllOOlllOlOOlllllOOlllllOOlllllOOlllOlOOlllllOOOllllOOlllOlOOlllllOOlllllOOlllllOOlllllOOlllllOOlllllOOlllllOOlllllOOlllllOOlllllOOlllllOOlllllOOlllllOOlllllOOllllOOOlllllOOlllllOOlllllOOlllllOOlllllOOlllllOOlllllOOlllllOOlllllOOlllllO","NHX","Darmstadt Mathildenplatz # Georgenhausen #"]
["REG",18,"HEAG Verkehrs-GmbH",null,"089_",0,"H","Mo-Fr",1605," ","Groß-Bieberau","Solo-Überlandbus-NF",0,0,0,0,0,"2000-01-01T16:47:30","2000-01-01T16:53:30",1.0333333330927417,24.7999999942258,"wz    - nicht 24. und 31.12.",248,3108,770.78399999999999,0,0,"OlllllOOlOOOlOOlOOllOOlllllOOlllllOOlllllOOlllllOOlllllOOlllllOOlllllOOlllllOOlllllOOlllllOOlllllOOlllllOOlllllOOlllllOOllllOOOOllllOOlllOlOOlllllOOlllllOOlllllOOlllOlOOlllllOOOllllOOlllOlOOlllllOOlllllOOlllllOOlllllOOlllllOOlllllOOlllllOOlllllOOlllllOOlllllOOlllllOOlllllOOlllllOOlllllOOllllOOOlllllOOlllllOOlllllOOlllllOOlllllOOlllllOOlllllOOlllllOOlllllOOlllllO","NHX","Darmstadt Mathildenplatz # Georgenhausen #"]
["REG",18,"HEAG Verkehrs-GmbH",null,"089_",0,"H","Mo-Fr",1605," ","Fischbachtal","Solo-Überlandbus-NF",0,0,0,0,0,"2000-01-01T16:53:30","2000-01-01T16:58:00",0.77499999891733751,18.5999999740161,"wz    - nicht 24. und 31.12.",248,2335,579.08000000000004,0,0,"OlllllOOlOOOlOOlOOllOOlllllOOlllllOOlllllOOlllllOOlllllOOlllllOOlllllOOlllllOOlllllOOlllllOOlllllOOlllllOOlllllOOlllllOOllllOOOOllllOOlllOlOOlllllOOlllllOOlllllOOlllOlOOlllllOOOllllOOlllOlOOlllllOOlllllOOlllllOOlllllOOlllllOOlllllOOlllllOOlllllOOlllllOOlllllOOlllllOOlllllOOlllllOOlllllOOllllOOOlllllOOlllllOOlllllOOlllllOOlllllOOlllllOOlllllOOlllllOOlllllOOlllllO","NHX","Darmstadt Mathildenplatz # Georgenhausen #"]
["REG",18,"HEAG Verkehrs-GmbH",null,"089_",0,"H","Mo-Fr",1705," ","Darmstadt","Solo-Überlandbus-NF",0,0,0,0,0,"2000-01-01T17:05:00","2000-01-01T17:18:42",2.3594444438349456,56.626666652038693,"wz    - nicht 24. und 31.12.",248,6465,1603.32,0,0,"OlllllOOlOOOlOOlOOllOOlllllOOlllllOOlllllOOlllllOOlllllOOlllllOOlllllOOlllllOOlllllOOlllllOOlllllOOlllllOOlllllOOlllllOOllllOOOOllllOOlllOlOOlllllOOlllllOOlllllOOlllOlOOlllllOOOllllOOlllOlOOlllllOOlllllOOlllllOOlllllOOlllllOOlllllOOlllllOOlllllOOlllllOOlllllOOlllllOOlllllOOlllllOOlllllOOllllOOOlllllOOlllllOOlllllOOlllllOOlllllOOlllllOOlllllOOlllllOOlllllOOlllllO","NHX","Darmstadt Mathildenplatz # Georgenhausen #"]
["REG",18,"HEAG Verkehrs-GmbH",null,"089_",0,"H","Mo-Fr",1705," ","Reinheim","Solo-Überlandbus-NF",0,0,0,0,0,"2000-01-01T17:18:42","2000-01-01T17:47:30",4.960000001010485,119.04000002425164,"wz    - nicht 24. und 31.12.",248,14931,3702.8879999999999,0,0,"OlllllOOlOOOlOOlOOllOOlllllOOlllllOOlllllOOlllllOOlllllOOlllllOOlllllOOlllllOOlllllOOlllllOOlllllOOlllllOOlllllOOlllllOOllllOOOOllllOOlllOlOOlllllOOlllllOOlllllOOlllOlOOlllllOOOllllOOlllOlOOlllllOOlllllOOlllllOOlllllOOlllllOOlllllOOlllllOOlllllOOlllllOOlllllOOlllllOOlllllOOlllllOOlllllOOllllOOOlllllOOlllllOOlllllOOlllllOOlllllOOlllllOOlllllOOlllllOOlllllOOlllllO","NHX","Darmstadt Mathildenplatz # Georgenhausen #"]
["REG",18,"HEAG Verkehrs-GmbH",null,"089_",0,"H","Mo-Fr",1705," ","Groß-Bieberau","Solo-Überlandbus-NF",0,0,0,0,0,"2000-01-01T17:47:30","2000-01-01T17:53:30",1.0333333330927417,24.7999999942258,"wz    - nicht 24. und 31.12.",248,3108,770.78399999999999,0,0,"OlllllOOlOOOlOOlOOllOOlllllOOlllllOOlllllOOlllllOOlllllOOlllllOOlllllOOlllllOOlllllOOlllllOOlllllOOlllllOOlllllOOlllllOOllllOOOOllllOOlllOlOOlllllOOlllllOOlllllOOlllOlOOlllllOOOllllOOlllOlOOlllllOOlllllOOlllllOOlllllOOlllllOOlllllOOlllllOOlllllOOlllllOOlllllOOlllllOOlllllOOlllllOOlllllOOllllOOOlllllOOlllllOOlllllOOlllllOOlllllOOlllllOOlllllOOlllllOOlllllOOlllllO","NHX","Darmstadt Mathildenplatz # Georgenhausen #"]
["REG",18,"HEAG Verkehrs-GmbH",null,"089_",0,"H","Mo-Fr",1705," ","Fischbachtal","Solo-Überlandbus-NF",0,0,0,0,0,"2000-01-01T17:53:30","2000-01-01T17:58:00",0.775000000721775,18.6000000173226,"wz    - nicht 24. und 31.12.",248,2335,579.08000000000004,0,0,"OlllllOOlOOOlOOlOOllOOlllllOOlllllOOlllllOOlllllOOlllllOOlllllOOlllllOOlllllOOlllllOOlllllOOlllllOOlllllOOlllllOOlllllOOllllOOOOllllOOlllOlOOlllllOOlllllOOlllllOOlllOlOOlllllOOOllllOOlllOlOOlllllOOlllllOOlllllOOlllllOOlllllOOlllllOOlllllOOlllllOOlllllOOlllllOOlllllOOlllllOOlllllOOlllllOOllllOOOlllllOOlllllOOlllllOOlllllOOlllllOOlllllOOlllllOOlllllOOlllllOOlllllO","NHX","Darmstadt Mathildenplatz # Georgenhausen #"]
["REG",18,"HEAG Verkehrs-GmbH",null,"089_",0,"H","Mo-Fr",1805," ","Darmstadt","Solo-Überlandbus-NF",0,0,0,0,0,"2000-01-01T18:05:00","2000-01-01T18:18:42",2.359444445639383,56.626666695345193,"wz    - nicht 24. und 31.12.",248,6465,1603.32,0,0,"OlllllOOlOOOlOOlOOllOOlllllOOlllllOOlllllOOlllllOOlllllOOlllllOOlllllOOlllllOOlllllOOlllllOOlllllOOlllllOOlllllOOlllllOOllllOOOOllllOOlllOlOOlllllOOlllllOOlllllOOlllOlOOlllllOOOllllOOlllOlOOlllllOOlllllOOlllllOOlllllOOlllllOOlllllOOlllllOOlllllOOlllllOOlllllOOlllllOOlllllOOlllllOOlllllOOllllOOOlllllOOlllllOOlllllOOlllllOOlllllOOlllllOOlllllOOlllllOOlllllOOlllllO","NHX","Darmstadt Mathildenplatz # Georgenhausen #"]
["REG",18,"HEAG Verkehrs-GmbH",null,"089_",0,"H","Mo-Fr",1805," ","Reinheim","Solo-Überlandbus-NF",0,0,0,0,0,"2000-01-01T18:18:42","2000-01-01T18:47:30",4.9599999992060475,119.03999998094514,"wz    - nicht 24. und 31.12.",248,14931,3702.8879999999999,0,0,"OlllllOOlOOOlOOlOOllOOlllllOOlllllOOlllllOOlllllOOlllllOOlllllOOlllllOOlllllOOlllllOOlllllOOlllllOOlllllOOlllllOOlllllOOllllOOOOllllOOlllOlOOlllllOOlllllOOlllllOOlllOlOOlllllOOOllllOOlllOlOOlllllOOlllllOOlllllOOlllllOOlllllOOlllllOOlllllOOlllllOOlllllOOlllllOOlllllOOlllllOOlllllOOlllllOOllllOOOlllllOOlllllOOlllllOOlllllOOlllllOOlllllOOlllllOOlllllOOlllllOOlllllO","NHX","Darmstadt Mathildenplatz # Georgenhausen #"]
["REG",18,"HEAG Verkehrs-GmbH",null,"089_",0,"H","Mo-Fr",1805," ","Groß-Bieberau","Solo-Überlandbus-NF",0,0,0,0,0,"2000-01-01T18:47:30","2000-01-01T18:53:30",1.0333333330927417,24.7999999942258,"wz    - nicht 24. und 31.12.",248,3108,770.78399999999999,0,0,"OlllllOOlOOOlOOlOOllOOlllllOOlllllOOlllllOOlllllOOlllllOOlllllOOlllllOOlllllOOlllllOOlllllOOlllllOOlllllOOlllllOOlllllOOllllOOOOllllOOlllOlOOlllllOOlllllOOlllllOOlllOlOOlllllOOOllllOOlllOlOOlllllOOlllllOOlllllOOlllllOOlllllOOlllllOOlllllOOlllllOOlllllOOlllllOOlllllOOlllllOOlllllOOlllllOOllllOOOlllllOOlllllOOlllllOOlllllOOlllllOOlllllOOlllllOOlllllOOlllllOOlllllO","NHX","Darmstadt Mathildenplatz # Georgenhausen #"]
["REG",18,"HEAG Verkehrs-GmbH",null,"089_",0,"H","Mo-Fr",1805," ","Fischbachtal","Solo-Überlandbus-NF",0,0,0,0,0,"2000-01-01T18:53:30","2000-01-01T18:58:00",0.775000000721775,18.6000000173226,"wz    - nicht 24. und 31.12.",248,2335,579.08000000000004,0,0,"OlllllOOlOOOlOOlOOllOOlllllOOlllllOOlllllOOlllllOOlllllOOlllllOOlllllOOlllllOOlllllOOlllllOOlllllOOlllllOOlllllOOlllllOOllllOOOOllllOOlllOlOOlllllOOlllllOOlllllOOlllOlOOlllllOOOllllOOlllOlOOlllllOOlllllOOlllllOOlllllOOlllllOOlllllOOlllllOOlllllOOlllllOOlllllOOlllllOOlllllOOlllllOOlllllOOllllOOOlllllOOlllllOOlllllOOlllllOOlllllOOlllllOOlllllOOlllllOOlllllOOlllllO","NHX","Darmstadt Mathildenplatz # Georgenhausen #"]
["REG",18,"HEAG Verkehrs-GmbH",null,"089_",0,"H","Mo-Fr",1905," ","Darmstadt","Solo-Überlandbus-NF",0,0,0,0,0,"2000-01-01T19:05:00","2000-01-01T19:18:42",2.3594444438349456,56.626666652038693,"wz    - nicht 24. und 31.12.",248,6465,1603.32,0,0,"OlllllOOlOOOlOOlOOllOOlllllOOlllllOOlllllOOlllllOOlllllOOlllllOOlllllOOlllllOOlllllOOlllllOOlllllOOlllllOOlllllOOlllllOOllllOOOOllllOOlllOlOOlllllOOlllllOOlllllOOlllOlOOlllllOOOllllOOlllOlOOlllllOOlllllOOlllllOOlllllOOlllllOOlllllOOlllllOOlllllOOlllllOOlllllOOlllllOOlllllOOlllllOOlllllOOllllOOOlllllOOlllllOOlllllOOlllllOOlllllOOlllllOOlllllOOlllllOOlllllOOlllllO","NHX","Darmstadt Mathildenplatz # Georgenhausen #"]
["REG",18,"HEAG Verkehrs-GmbH",null,"089_",0,"H","Mo-Fr",1905," ","Reinheim","Solo-Überlandbus-NF",0,0,0,0,0,"2000-01-01T19:18:42","2000-01-01T19:47:30",4.960000001010485,119.04000002425164,"wz    - nicht 24. und 31.12.",248,14931,3702.8879999999999,0,0,"OlllllOOlOOOlOOlOOllOOlllllOOlllllOOlllllOOlllllOOlllllOOlllllOOlllllOOlllllOOlllllOOlllllOOlllllOOlllllOOlllllOOlllllOOllllOOOOllllOOlllOlOOlllllOOlllllOOlllllOOlllOlOOlllllOOOllllOOlllOlOOlllllOOlllllOOlllllOOlllllOOlllllOOlllllOOlllllOOlllllOOlllllOOlllllOOlllllOOlllllOOlllllOOlllllOOllllOOOlllllOOlllllOOlllllOOlllllOOlllllOOlllllOOlllllOOlllllOOlllllOOlllllO","NHX","Darmstadt Mathildenplatz # Georgenhausen #"]
["REG",18,"HEAG Verkehrs-GmbH",null,"089_",0,"H","Mo-Fr",1905," ","Groß-Bieberau","Solo-Überlandbus-NF",0,0,0,0,0,"2000-01-01T19:47:30","2000-01-01T19:53:30",1.0333333330927417,24.7999999942258,"wz    - nicht 24. und 31.12.",248,3108,770.78399999999999,0,0,"OlllllOOlOOOlOOlOOllOOlllllOOlllllOOlllllOOlllllOOlllllOOlllllOOlllllOOlllllOOlllllOOlllllOOlllllOOlllllOOlllllOOlllllOOllllOOOOllllOOlllOlOOlllllOOlllllOOlllllOOlllOlOOlllllOOOllllOOlllOlOOlllllOOlllllOOlllllOOlllllOOlllllOOlllllOOlllllOOlllllOOlllllOOlllllOOlllllOOlllllOOlllllOOlllllOOllllOOOlllllOOlllllOOlllllOOlllllOOlllllOOlllllOOlllllOOlllllOOlllllOOlllllO","NHX","Darmstadt Mathildenplatz # Georgenhausen #"]
["REG",18,"HEAG Verkehrs-GmbH",null,"089_",0,"H","Mo-Fr",1905," ","Fischbachtal","Solo-Überlandbus-NF",0,0,0,0,0,"2000-01-01T19:53:30","2000-01-01T19:58:00",0.77499999891733751,18.5999999740161,"wz    - nicht 24. und 31.12.",248,2335,579.08000000000004,0,0,"OlllllOOlOOOlOOlOOllOOlllllOOlllllOOlllllOOlllllOOlllllOOlllllOOlllllOOlllllOOlllllOOlllllOOlllllOOlllllOOlllllOOlllllOOllllOOOOllllOOlllOlOOlllllOOlllllOOlllllOOlllOlOOlllllOOOllllOOlllOlOOlllllOOlllllOOlllllOOlllllOOlllllOOlllllOOlllllOOlllllOOlllllOOlllllOOlllllOOlllllOOlllllOOlllllOOllllOOOlllllOOlllllOOlllllOOlllllOOlllllOOlllllOOlllllOOlllllOOlllllOOlllllO","NHX","Darmstadt Mathildenplatz # Georgenhausen #"]
["REG",18,"HEAG Verkehrs-GmbH",null,"089_",0,"H","Mo-Fr",2005," ","Darmstadt","Solo-Überlandbus-NF",0,0,0,0,0,"2000-01-01T20:05:00","2000-01-01T20:18:42",2.3594444438349456,56.626666652038693,"wz    - nicht 24. und 31.12.",248,6465,1603.32,0,0,"OlllllOOlOOOlOOlOOllOOlllllOOlllllOOlllllOOlllllOOlllllOOlllllOOlllllOOlllllOOlllllOOlllllOOlllllOOlllllOOlllllOOlllllOOllllOOOOllllOOlllOlOOlllllOOlllllOOlllllOOlllOlOOlllllOOOllllOOlllOlOOlllllOOlllllOOlllllOOlllllOOlllllOOlllllOOlllllOOlllllOOlllllOOlllllOOlllllOOlllllOOlllllOOlllllOOllllOOOlllllOOlllllOOlllllOOlllllOOlllllOOlllllOOlllllOOlllllOOlllllOOlllllO","NHX","Darmstadt Mathildenplatz # Georgenhausen #"]
["REG",18,"HEAG Verkehrs-GmbH",null,"089_",0,"H","Mo-Fr",2005," ","Reinheim","Solo-Überlandbus-NF",0,0,0,0,0,"2000-01-01T20:18:42","2000-01-01T20:47:30",4.960000001010485,119.04000002425164,"wz    - nicht 24. und 31.12.",248,14931,3702.8879999999999,0,0,"OlllllOOlOOOlOOlOOllOOlllllOOlllllOOlllllOOlllllOOlllllOOlllllOOlllllOOlllllOOlllllOOlllllOOlllllOOlllllOOlllllOOlllllOOllllOOOOllllOOlllOlOOlllllOOlllllOOlllllOOlllOlOOlllllOOOllllOOlllOlOOlllllOOlllllOOlllllOOlllllOOlllllOOlllllOOlllllOOlllllOOlllllOOlllllOOlllllOOlllllOOlllllOOlllllOOllllOOOlllllOOlllllOOlllllOOlllllOOlllllOOlllllOOlllllOOlllllOOlllllOOlllllO","NHX","Darmstadt Mathildenplatz # Georgenhausen #"]
["REG",18,"HEAG Verkehrs-GmbH",null,"089_",0,"H","Mo-Fr",2005," ","Groß-Bieberau","Solo-Überlandbus-NF",0,0,0,0,0,"2000-01-01T20:47:30","2000-01-01T20:53:30",1.0333333330927417,24.7999999942258,"wz    - nicht 24. und 31.12.",248,3108,770.78399999999999,0,0,"OlllllOOlOOOlOOlOOllOOlllllOOlllllOOlllllOOlllllOOlllllOOlllllOOlllllOOlllllOOlllllOOlllllOOlllllOOlllllOOlllllOOlllllOOllllOOOOllllOOlllOlOOlllllOOlllllOOlllllOOlllOlOOlllllOOOllllOOlllOlOOlllllOOlllllOOlllllOOlllllOOlllllOOlllllOOlllllOOlllllOOlllllOOlllllOOlllllOOlllllOOlllllOOlllllOOllllOOOlllllOOlllllOOlllllOOlllllOOlllllOOlllllOOlllllOOlllllOOlllllOOlllllO","NHX","Darmstadt Mathildenplatz # Georgenhausen #"]
["REG",18,"HEAG Verkehrs-GmbH",null,"089_",0,"H","Mo-Fr",2005," ","Fischbachtal","Solo-Überlandbus-NF",0,0,0,0,0,"2000-01-01T20:53:30","2000-01-01T20:58:00",0.775000000721775,18.6000000173226,"wz    - nicht 24. und 31.12.",248,2335,579.08000000000004,0,0,"OlllllOOlOOOlOOlOOllOOlllllOOlllllOOlllllOOlllllOOlllllOOlllllOOlllllOOlllllOOlllllOOlllllOOlllllOOlllllOOlllllOOlllllOOllllOOOOllllOOlllOlOOlllllOOlllllOOlllllOOlllOlOOlllllOOOllllOOlllOlOOlllllOOlllllOOlllllOOlllllOOlllllOOlllllOOlllllOOlllllOOlllllOOlllllOOlllllOOlllllOOlllllOOlllllOOllllOOOlllllOOlllllOOlllllOOlllllOOlllllOOlllllOOlllllOOlllllOOlllllOOlllllO","NHX","Darmstadt Mathildenplatz # Georgenhausen #"]
["REG",18,"HEAG Verkehrs-GmbH",null,"089_",0,"R","Mo-Fr",500," ","Fischbachtal","Solo-Überlandbus-NF",0,0,0,0,0,"2000-01-01T05:00:00","2000-01-01T05:03:00",0.51666666654637083,12.3999999971129,"wz    - nicht 24. und 31.12.",248,2313,573.62400000000002,0,0,"OlllllOOlOOOlOOlOOllOOlllllOOlllllOOlllllOOlllllOOlllllOOlllllOOlllllOOlllllOOlllllOOlllllOOlllllOOlllllOOlllllOOlllllOOllllOOOOllllOOlllOlOOlllllOOlllllOOlllllOOlllOlOOlllllOOOllllOOlllOlOOlllllOOlllllOOlllllOOlllllOOlllllOOlllllOOlllllOOlllllOOlllllOOlllllOOlllllOOlllllOOlllllOOlllllOOllllOOOlllllOOlllllOOlllllOOlllllOOlllllOOlllllOOlllllOOlllllOOlllllOOlllllO","NHX","Niedernhausen Linde # Groß-Bieberau # Reinheim #"]
["REG",18,"HEAG Verkehrs-GmbH",null,"089_",0,"R","Mo-Fr",500," ","Groß-Bieberau","Solo-Überlandbus-NF",0,0,0,0,0,"2000-01-01T05:03:00","2000-01-01T05:08:36",0.96444444434018806,23.146666664164513,"wz    - nicht 24. und 31.12.",248,2958,733.58399999999995,0,0,"OlllllOOlOOOlOOlOOllOOlllllOOlllllOOlllllOOlllllOOlllllOOlllllOOlllllOOlllllOOlllllOOlllllOOlllllOOlllllOOlllllOOlllllOOllllOOOOllllOOlllOlOOlllllOOlllllOOlllllOOlllOlOOlllllOOOllllOOlllOlOOlllllOOlllllOOlllllOOlllllOOlllllOOlllllOOlllllOOlllllOOlllllOOlllllOOlllllOOlllllOOlllllOOlllllOOllllOOOlllllOOlllllOOlllllOOlllllOOlllllOOlllllOOlllllOOlllllOOlllllOOlllllO","NHX","Niedernhausen Linde # Groß-Bieberau # Reinheim #"]
["REG",18,"HEAG Verkehrs-GmbH",null,"089_",0,"R","Mo-Fr",500," ","Reinheim","Solo-Überlandbus-NF",0,0,0,0,0,"2000-01-01T05:08:36","2000-01-01T05:38:18",5.1149999993504025,122.75999998440966,"wz    - nicht 24. und 31.12.",248,15643,3879.4639999999999,0,0,"OlllllOOlOOOlOOlOOllOOlllllOOlllllOOlllllOOlllllOOlllllOOlllllOOlllllOOlllllOOlllllOOlllllOOlllllOOlllllOOlllllOOlllllOOllllOOOOllllOOlllOlOOlllllOOlllllOOlllllOOlllOlOOlllllOOOllllOOlllOlOOlllllOOlllllOOlllllOOlllllOOlllllOOlllllOOlllllOOlllllOOlllllOOlllllOOlllllOOlllllOOlllllOOlllllOOllllOOOlllllOOlllllOOlllllOOlllllOOlllllOOlllllOOlllllOOlllllOOlllllOOlllllO","NHX","Niedernhausen Linde # Groß-Bieberau # Reinheim #"]
["REG",18,"HEAG Verkehrs-GmbH",null,"089_",0,"R","Mo-Fr",500," ","Darmstadt","Solo-Überlandbus-NF",0,0,0,0,0,"2000-01-01T05:38:18","2000-01-01T05:52:00",2.3594444438349456,{"$f":"T67*24","v":56.626666652038693},"wz    - nicht 24. und 31.12.",248,6758,1675.9839999999999,0,0,"OlllllOOlOOOlOOlOOllOOlllllOOlllllOOlllllOOlllllOOlllllOOlllllOOlllllOOlllllOOlllllOOlllllOOlllllOOlllllOOlllllOOlllllOOllllOOOOllllOOlllOlOOlllllOOlllllOOlllllOOlllOlOOlllllOOOllllOOlllOlOOlllllOOlllllOOlllllOOlllllOOlllllOOlllllOOlllllOOlllllOOlllllOOlllllOOlllllOOlllllOOlllllOOlllllOOllllOOOlllllOOlllllOOlllllOOlllllOOlllllOOlllllOOlllllOOlllllOOlllllOOlllllO","NHX","Niedernhausen Linde # Groß-Bieberau # Reinheim #"]
["REG",18,"HEAG Verkehrs-GmbH",null,"089_",0,"R","Mo-Fr",555," ","Fischbachtal","Solo-Überlandbus-NF",0,0,0,0,0,"2000-01-01T05:55:00","2000-01-01T05:58:00",0.51666666654637083,12.3999999971129,"wz    - nicht 24. und 31.12.",248,2313,573.62400000000002,0,0,"OlllllOOlOOOlOOlOOllOOlllllOOlllllOOlllllOOlllllOOlllllOOlllllOOlllllOOlllllOOlllllOOlllllOOlllllOOlllllOOlllllOOlllllOOllllOOOOllllOOlllOlOOlllllOOlllllOOlllllOOlllOlOOlllllOOOllllOOlllOlOOlllllOOlllllOOlllllOOlllllOOlllllOOlllllOOlllllOOlllllOOlllllOOlllllOOlllllOOlllllOOlllllOOlllllOOllllOOOlllllOOlllllOOlllllOOlllllOOlllllOOlllllOOlllllOOlllllOOlllllOOlllllO","NHX","Niedernhausen Linde # Groß-Bieberau # Reinheim #"]
["REG",18,"HEAG Verkehrs-GmbH",null,"089_",0,"R","Mo-Fr",555," ","Groß-Bieberau","Solo-Überlandbus-NF",0,0,0,0,0,"2000-01-01T05:58:00","2000-01-01T06:03:36",0.96444444434018806,23.146666664164513,"wz    - nicht 24. und 31.12.",248,2958,733.58399999999995,0,0,"OlllllOOlOOOlOOlOOllOOlllllOOlllllOOlllllOOlllllOOlllllOOlllllOOlllllOOlllllOOlllllOOlllllOOlllllOOlllllOOlllllOOlllllOOllllOOOOllllOOlllOlOOlllllOOlllllOOlllllOOlllOlOOlllllOOOllllOOlllOlOOlllllOOlllllOOlllllOOlllllOOlllllOOlllllOOlllllOOlllllOOlllllOOlllllOOlllllOOlllllOOlllllOOlllllOOllllOOOlllllOOlllllOOlllllOOlllllOOlllllOOlllllOOlllllOOlllllOOlllllOOlllllO","NHX","Niedernhausen Linde # Groß-Bieberau # Reinheim #"]
["REG",18,"HEAG Verkehrs-GmbH",null,"089_",0,"R","Mo-Fr",555," ","Reinheim","Solo-Überlandbus-NF",0,0,0,0,0,"2000-01-01T06:03:36","2000-01-01T06:33:18",5.1149999993504025,122.75999998440966,"wz    - nicht 24. und 31.12.",248,15643,3879.4639999999999,0,0,"OlllllOOlOOOlOOlOOllOOlllllOOlllllOOlllllOOlllllOOlllllOOlllllOOlllllOOlllllOOlllllOOlllllOOlllllOOlllllOOlllllOOlllllOOllllOOOOllllOOlllOlOOlllllOOlllllOOlllllOOlllOlOOlllllOOOllllOOlllOlOOlllllOOlllllOOlllllOOlllllOOlllllOOlllllOOlllllOOlllllOOlllllOOlllllOOlllllOOlllllOOlllllOOlllllOOllllOOOlllllOOlllllOOlllllOOlllllOOlllllOOlllllOOlllllOOlllllOOlllllOOlllllO","NHX","Niedernhausen Linde # Groß-Bieberau # Reinheim #"]
["REG",18,"HEAG Verkehrs-GmbH",null,"089_",0,"R","Mo-Fr",555," ","Darmstadt","Solo-Überlandbus-NF",0,0,0,0,0,"2000-01-01T06:33:18","2000-01-01T06:47:00",2.3594444438349456,56.626666652038693,"wz    - nicht 24. und 31.12.",248,6758,1675.9839999999999,0,0,"OlllllOOlOOOlOOlOOllOOlllllOOlllllOOlllllOOlllllOOlllllOOlllllOOlllllOOlllllOOlllllOOlllllOOlllllOOlllllOOlllllOOlllllOOllllOOOOllllOOlllOlOOlllllOOlllllOOlllllOOlllOlOOlllllOOOllllOOlllOlOOlllllOOlllllOOlllllOOlllllOOlllllOOlllllOOlllllOOlllllOOlllllOOlllllOOlllllOOlllllOOlllllOOlllllOOllllOOOlllllOOlllllOOlllllOOlllllOOlllllOOlllllOOlllllOOlllllOOlllllOOlllllO","NHX","Niedernhausen Linde # Groß-Bieberau # Reinheim #"]
["REG",18,"HEAG Verkehrs-GmbH",null,"089_",0,"R","Mo-Fr",655," ","Fischbachtal","Solo-Überlandbus-NF",0,0,0,0,0,"2000-01-01T06:55:00","2000-01-01T06:58:00",0.51666666654637083,12.3999999971129,"wz    - nicht 24. und 31.12.",248,2313,573.62400000000002,0,0,"OlllllOOlOOOlOOlOOllOOlllllOOlllllOOlllllOOlllllOOlllllOOlllllOOlllllOOlllllOOlllllOOlllllOOlllllOOlllllOOlllllOOlllllOOllllOOOOllllOOlllOlOOlllllOOlllllOOlllllOOlllOlOOlllllOOOllllOOlllOlOOlllllOOlllllOOlllllOOlllllOOlllllOOlllllOOlllllOOlllllOOlllllOOlllllOOlllllOOlllllOOlllllOOlllllOOllllOOOlllllOOlllllOOlllllOOlllllOOlllllOOlllllOOlllllOOlllllOOlllllOOlllllO","NHX","Niedernhausen Linde # Groß-Bieberau # Reinheim #"]
["REG",18,"HEAG Verkehrs-GmbH",null,"089_",0,"R","Mo-Fr",655," ","Groß-Bieberau","Solo-Überlandbus-NF",0,0,0,0,0,"2000-01-01T06:58:00","2000-01-01T07:03:36",0.96444444434018806,23.146666664164513,"wz    - nicht 24. und 31.12.",248,2958,733.58399999999995,0,0,"OlllllOOlOOOlOOlOOllOOlllllOOlllllOOlllllOOlllllOOlllllOOlllllOOlllllOOlllllOOlllllOOlllllOOlllllOOlllllOOlllllOOlllllOOllllOOOOllllOOlllOlOOlllllOOlllllOOlllllOOlllOlOOlllllOOOllllOOlllOlOOlllllOOlllllOOlllllOOlllllOOlllllOOlllllOOlllllOOlllllOOlllllOOlllllOOlllllOOlllllOOlllllOOlllllOOllllOOOlllllOOlllllOOlllllOOlllllOOlllllOOlllllOOlllllOOlllllOOlllllOOlllllO","NHX","Niedernhausen Linde # Groß-Bieberau # Reinheim #"]
["REG",18,"HEAG Verkehrs-GmbH",null,"089_",0,"R","Mo-Fr",655," ","Reinheim","Solo-Überlandbus-NF",0,0,0,0,0,"2000-01-01T07:03:36","2000-01-01T07:33:18",5.1149999993504025,122.75999998440966,"wz    - nicht 24. und 31.12.",248,15643,3879.4639999999999,0,0,"OlllllOOlOOOlOOlOOllOOlllllOOlllllOOlllllOOlllllOOlllllOOlllllOOlllllOOlllllOOlllllOOlllllOOlllllOOlllllOOlllllOOlllllOOllllOOOOllllOOlllOlOOlllllOOlllllOOlllllOOlllOlOOlllllOOOllllOOlllOlOOlllllOOlllllOOlllllOOlllllOOlllllOOlllllOOlllllOOlllllOOlllllOOlllllOOlllllOOlllllOOlllllOOlllllOOllllOOOlllllOOlllllOOlllllOOlllllOOlllllOOlllllOOlllllOOlllllOOlllllOOlllllO","NHX","Niedernhausen Linde # Groß-Bieberau # Reinheim #"]
["REG",18,"HEAG Verkehrs-GmbH",null,"089_",0,"R","Mo-Fr",655," ","Darmstadt","Solo-Überlandbus-NF",0,0,0,0,0,"2000-01-01T07:33:18","2000-01-01T07:47:00",2.359444445639383,56.626666695345193,"wz    - nicht 24. und 31.12.",248,6758,1675.9839999999999,0,0,"OlllllOOlOOOlOOlOOllOOlllllOOlllllOOlllllOOlllllOOlllllOOlllllOOlllllOOlllllOOlllllOOlllllOOlllllOOlllllOOlllllOOlllllOOllllOOOOllllOOlllOlOOlllllOOlllllOOlllllOOlllOlOOlllllOOOllllOOlllOlOOlllllOOlllllOOlllllOOlllllOOlllllOOlllllOOlllllOOlllllOOlllllOOlllllOOlllllOOlllllOOlllllOOlllllOOllllOOOlllllOOlllllOOlllllOOlllllOOlllllOOlllllOOlllllOOlllllOOlllllOOlllllO","NHX","Niedernhausen Linde # Groß-Bieberau # Reinheim #"]
["REG",18,"HEAG Verkehrs-GmbH",null,"089_",0,"R","Mo-Fr",728," ","Fischbachtal","Solo-Überlandbus-NF",0,0,0,0,0,"2000-01-01T07:28:00","2000-01-01T07:31:00",0.40416666657256428,9.6999999977415428,"09    - nur an Schultagen; wz    - nicht 24. und 31.12.",194,2313,448.72199999999998,0,0,"OlllllOOOOOOOOOOOOOOOOlllllOOlllllOOlllllOOlllllOOlllllOOlllllOOlllllOOlllllOOlllllOOlllllOOlllllOOlllllOOlllllOOOOOOOOOOOOOOOOOllllOOlllOlOOlllllOOlllllOOlllllOOlllOlOOlllllOOOllllOOlllOlOOlllllOOlllllOOOOOOOOOOOOOOOOOOOOOOOOOOOOOOOOOOOOOOOOOOOOlllllOOlllllOOlllllOOlllllOOlllllOOlllllOOllllOOOOOOOOOOOOOOOOOlllllOOlllllOOlllllOOlllllOOlllllOOlllllOOlllllOOlllllO","NHX","Niedernhausen Linde # Groß-Bieberau # Reinheim #"]
["REG",18,"HEAG Verkehrs-GmbH",null,"089_",0,"R","Mo-Fr",728," ","Groß-Bieberau","Solo-Überlandbus-NF",0,0,0,0,0,"2000-01-01T07:31:00","2000-01-01T07:39:30",1.1451388883870095,27.483333321288228,"09    - nur an Schultagen; wz    - nicht 24. und 31.12.",194,3925,761.45,0,0,"OlllllOOOOOOOOOOOOOOOOlllllOOlllllOOlllllOOlllllOOlllllOOlllllOOlllllOOlllllOOlllllOOlllllOOlllllOOlllllOOlllllOOOOOOOOOOOOOOOOOllllOOlllOlOOlllllOOlllllOOlllllOOlllOlOOlllllOOOllllOOlllOlOOlllllOOlllllOOOOOOOOOOOOOOOOOOOOOOOOOOOOOOOOOOOOOOOOOOOOlllllOOlllllOOlllllOOlllllOOlllllOOlllllOOllllOOOOOOOOOOOOOOOOOlllllOOlllllOOlllllOOlllllOOlllllOOlllllOOlllllOOlllllO","NHX","Niedernhausen Linde # Groß-Bieberau # Reinheim #"]
["REG",18,"HEAG Verkehrs-GmbH",null,"089_",0,"R","Mo-Fr",728," ","Reinheim","Solo-Überlandbus-NF",0,0,0,0,0,"2000-01-01T07:39:30","2000-01-01T08:09:18",4.0147222220402909,96.353333328966983,"09    - nur an Schultagen; wz    - nicht 24. und 31.12.",194,15539,3014.5659999999998,0,0,"OlllllOOOOOOOOOOOOOOOOlllllOOlllllOOlllllOOlllllOOlllllOOlllllOOlllllOOlllllOOlllllOOlllllOOlllllOOlllllOOlllllOOOOOOOOOOOOOOOOOllllOOlllOlOOlllllOOlllllOOlllllOOlllOlOOlllllOOOllllOOlllOlOOlllllOOlllllOOOOOOOOOOOOOOOOOOOOOOOOOOOOOOOOOOOOOOOOOOOOlllllOOlllllOOlllllOOlllllOOlllllOOlllllOOllllOOOOOOOOOOOOOOOOOlllllOOlllllOOlllllOOlllllOOlllllOOlllllOOlllllOOlllllO","NHX","Niedernhausen Linde # Groß-Bieberau # Reinheim #"]
["REG",18,"HEAG Verkehrs-GmbH",null,"089_",0,"R","Mo-Fr",728," ","Darmstadt","Solo-Überlandbus-NF",0,0,0,0,0,"2000-01-01T08:09:18","2000-01-01T08:23:00",1.8456944453791948,44.296666689100675,"09    - nur an Schultagen; wz    - nicht 24. und 31.12.",194,6758,1311.0519999999999,0,0,"OlllllOOOOOOOOOOOOOOOOlllllOOlllllOOlllllOOlllllOOlllllOOlllllOOlllllOOlllllOOlllllOOlllllOOlllllOOlllllOOlllllOOOOOOOOOOOOOOOOOllllOOlllOlOOlllllOOlllllOOlllllOOlllOlOOlllllOOOllllOOlllOlOOlllllOOlllllOOOOOOOOOOOOOOOOOOOOOOOOOOOOOOOOOOOOOOOOOOOOlllllOOlllllOOlllllOOlllllOOlllllOOlllllOOllllOOOOOOOOOOOOOOOOOlllllOOlllllOOlllllOOlllllOOlllllOOlllllOOlllllOOlllllO","NHX","Niedernhausen Linde # Groß-Bieberau # Reinheim #"]
["REG",18,"HEAG Verkehrs-GmbH",null,"089_",0,"R","Mo-Fr",800," ","Fischbachtal","Solo-Überlandbus-NF",0,0,0,0,0,"2000-01-01T08:00:00","2000-01-01T08:03:00",0.51666666654637083,12.3999999971129,"wz    - nicht 24. und 31.12.",248,2313,573.62400000000002,0,0,"OlllllOOlOOOlOOlOOllOOlllllOOlllllOOlllllOOlllllOOlllllOOlllllOOlllllOOlllllOOlllllOOlllllOOlllllOOlllllOOlllllOOlllllOOllllOOOOllllOOlllOlOOlllllOOlllllOOlllllOOlllOlOOlllllOOOllllOOlllOlOOlllllOOlllllOOlllllOOlllllOOlllllOOlllllOOlllllOOlllllOOlllllOOlllllOOlllllOOlllllOOlllllOOlllllOOllllOOOlllllOOlllllOOlllllOOlllllOOlllllOOlllllOOlllllOOlllllOOlllllOOlllllO","NHX","Niedernhausen Linde # Groß-Bieberau # Reinheim #"]
["REG",18,"HEAG Verkehrs-GmbH",null,"089_",0,"R","Mo-Fr",800," ","Groß-Bieberau","Solo-Überlandbus-NF",0,0,0,0,0,"2000-01-01T08:03:00","2000-01-01T08:08:36",0.96444444434018806,23.146666664164513,"wz    - nicht 24. und 31.12.",248,2958,733.58399999999995,0,0,"OlllllOOlOOOlOOlOOllOOlllllOOlllllOOlllllOOlllllOOlllllOOlllllOOlllllOOlllllOOlllllOOlllllOOlllllOOlllllOOlllllOOlllllOOllllOOOOllllOOlllOlOOlllllOOlllllOOlllllOOlllOlOOlllllOOOllllOOlllOlOOlllllOOlllllOOlllllOOlllllOOlllllOOlllllOOlllllOOlllllOOlllllOOlllllOOlllllOOlllllOOlllllOOlllllOOllllOOOlllllOOlllllOOlllllOOlllllOOlllllOOlllllOOlllllOOlllllOOlllllOOlllllO","NHX","Niedernhausen Linde # Groß-Bieberau # Reinheim #"]
["REG",18,"HEAG Verkehrs-GmbH",null,"089_",0,"R","Mo-Fr",800," ","Reinheim","Solo-Überlandbus-NF",0,0,0,0,0,"2000-01-01T08:08:36","2000-01-01T08:38:18",5.1149999993504025,122.75999998440966,"wz    - nicht 24. und 31.12.",248,15643,3879.4639999999999,0,0,"OlllllOOlOOOlOOlOOllOOlllllOOlllllOOlllllOOlllllOOlllllOOlllllOOlllllOOlllllOOlllllOOlllllOOlllllOOlllllOOlllllOOlllllOOllllOOOOllllOOlllOlOOlllllOOlllllOOlllllOOlllOlOOlllllOOOllllOOlllOlOOlllllOOlllllOOlllllOOlllllOOlllllOOlllllOOlllllOOlllllOOlllllOOlllllOOlllllOOlllllOOlllllOOlllllOOllllOOOlllllOOlllllOOlllllOOlllllOOlllllOOlllllOOlllllOOlllllOOlllllOOlllllO","NHX","Niedernhausen Linde # Groß-Bieberau # Reinheim #"]
["REG",18,"HEAG Verkehrs-GmbH",null,"089_",0,"R","Mo-Fr",800," ","Darmstadt","Solo-Überlandbus-NF",0,0,0,0,0,"2000-01-01T08:38:18","2000-01-01T08:52:00",2.3594444438349456,56.626666652038693,"wz    - nicht 24. und 31.12.",248,6758,1675.9839999999999,0,0,"OlllllOOlOOOlOOlOOllOOlllllOOlllllOOlllllOOlllllOOlllllOOlllllOOlllllOOlllllOOlllllOOlllllOOlllllOOlllllOOlllllOOlllllOOllllOOOOllllOOlllOlOOlllllOOlllllOOlllllOOlllOlOOlllllOOOllllOOlllOlOOlllllOOlllllOOlllllOOlllllOOlllllOOlllllOOlllllOOlllllOOlllllOOlllllOOlllllOOlllllOOlllllOOlllllOOllllOOOlllllOOlllllOOlllllOOlllllOOlllllOOlllllOOlllllOOlllllOOlllllOOlllllO","NHX","Niedernhausen Linde # Groß-Bieberau # Reinheim #"]
["REG",18,"HEAG Verkehrs-GmbH",null,"089_",0,"R","Mo-Fr",900," ","Fischbachtal","Solo-Überlandbus-NF",0,0,0,0,0,"2000-01-01T09:00:00","2000-01-01T09:03:00",0.51666666654637083,12.3999999971129,"wz    - nicht 24. und 31.12.",248,2313,573.62400000000002,0,0,"OlllllOOlOOOlOOlOOllOOlllllOOlllllOOlllllOOlllllOOlllllOOlllllOOlllllOOlllllOOlllllOOlllllOOlllllOOlllllOOlllllOOlllllOOllllOOOOllllOOlllOlOOlllllOOlllllOOlllllOOlllOlOOlllllOOOllllOOlllOlOOlllllOOlllllOOlllllOOlllllOOlllllOOlllllOOlllllOOlllllOOlllllOOlllllOOlllllOOlllllOOlllllOOlllllOOllllOOOlllllOOlllllOOlllllOOlllllOOlllllOOlllllOOlllllOOlllllOOlllllOOlllllO","NHX","Niedernhausen Linde # Groß-Bieberau # Reinheim #"]
["REG",18,"HEAG Verkehrs-GmbH",null,"089_",0,"R","Mo-Fr",900," ","Groß-Bieberau","Solo-Überlandbus-NF",0,0,0,0,0,"2000-01-01T09:03:00","2000-01-01T09:08:36",0.96444444434018806,23.146666664164513,"wz    - nicht 24. und 31.12.",248,2958,733.58399999999995,0,0,"OlllllOOlOOOlOOlOOllOOlllllOOlllllOOlllllOOlllllOOlllllOOlllllOOlllllOOlllllOOlllllOOlllllOOlllllOOlllllOOlllllOOlllllOOllllOOOOllllOOlllOlOOlllllOOlllllOOlllllOOlllOlOOlllllOOOllllOOlllOlOOlllllOOlllllOOlllllOOlllllOOlllllOOlllllOOlllllOOlllllOOlllllOOlllllOOlllllOOlllllOOlllllOOlllllOOllllOOOlllllOOlllllOOlllllOOlllllOOlllllOOlllllOOlllllOOlllllOOlllllOOlllllO","NHX","Niedernhausen Linde # Groß-Bieberau # Reinheim #"]
["REG",18,"HEAG Verkehrs-GmbH",null,"089_",0,"R","Mo-Fr",900," ","Reinheim","Solo-Überlandbus-NF",0,0,0,0,0,"2000-01-01T09:08:36","2000-01-01T09:38:18",5.1149999993504025,122.75999998440966,"wz    - nicht 24. und 31.12.",248,15643,3879.4639999999999,0,0,"OlllllOOlOOOlOOlOOllOOlllllOOlllllOOlllllOOlllllOOlllllOOlllllOOlllllOOlllllOOlllllOOlllllOOlllllOOlllllOOlllllOOlllllOOllllOOOOllllOOlllOlOOlllllOOlllllOOlllllOOlllOlOOlllllOOOllllOOlllOlOOlllllOOlllllOOlllllOOlllllOOlllllOOlllllOOlllllOOlllllOOlllllOOlllllOOlllllOOlllllOOlllllOOlllllOOllllOOOlllllOOlllllOOlllllOOlllllOOlllllOOlllllOOlllllOOlllllOOlllllOOlllllO","NHX","Niedernhausen Linde # Groß-Bieberau # Reinheim #"]
["REG",18,"HEAG Verkehrs-GmbH",null,"089_",0,"R","Mo-Fr",900," ","Darmstadt","Solo-Überlandbus-NF",0,0,0,0,0,"2000-01-01T09:38:18","2000-01-01T09:52:00",2.359444445639383,56.626666695345193,"wz    - nicht 24. und 31.12.",248,6758,1675.9839999999999,0,0,"OlllllOOlOOOlOOlOOllOOlllllOOlllllOOlllllOOlllllOOlllllOOlllllOOlllllOOlllllOOlllllOOlllllOOlllllOOlllllOOlllllOOlllllOOllllOOOOllllOOlllOlOOlllllOOlllllOOlllllOOlllOlOOlllllOOOllllOOlllOlOOlllllOOlllllOOlllllOOlllllOOlllllOOlllllOOlllllOOlllllOOlllllOOlllllOOlllllOOlllllOOlllllOOlllllOOllllOOOlllllOOlllllOOlllllOOlllllOOlllllOOlllllOOlllllOOlllllOOlllllOOlllllO","NHX","Niedernhausen Linde # Groß-Bieberau # Reinheim #"]
["REG",18,"HEAG Verkehrs-GmbH",null,"089_",0,"R","Mo-Fr",1000," ","Fischbachtal","Solo-Überlandbus-NF",0,0,0,0,0,"2000-01-01T10:00:00","2000-01-01T10:03:00",0.51666666654637083,12.3999999971129,"wz    - nicht 24. und 31.12.",248,2313,573.62400000000002,0,0,"OlllllOOlOOOlOOlOOllOOlllllOOlllllOOlllllOOlllllOOlllllOOlllllOOlllllOOlllllOOlllllOOlllllOOlllllOOlllllOOlllllOOlllllOOllllOOOOllllOOlllOlOOlllllOOlllllOOlllllOOlllOlOOlllllOOOllllOOlllOlOOlllllOOlllllOOlllllOOlllllOOlllllOOlllllOOlllllOOlllllOOlllllOOlllllOOlllllOOlllllOOlllllOOlllllOOllllOOOlllllOOlllllOOlllllOOlllllOOlllllOOlllllOOlllllOOlllllOOlllllOOlllllO","NHX","Niedernhausen Linde # Groß-Bieberau # Reinheim #"]
["REG",18,"HEAG Verkehrs-GmbH",null,"089_",0,"R","Mo-Fr",1000," ","Groß-Bieberau","Solo-Überlandbus-NF",0,0,0,0,0,"2000-01-01T10:03:00","2000-01-01T10:08:36",0.96444444434018806,23.146666664164513,"wz    - nicht 24. und 31.12.",248,2958,733.58399999999995,0,0,"OlllllOOlOOOlOOlOOllOOlllllOOlllllOOlllllOOlllllOOlllllOOlllllOOlllllOOlllllOOlllllOOlllllOOlllllOOlllllOOlllllOOlllllOOllllOOOOllllOOlllOlOOlllllOOlllllOOlllllOOlllOlOOlllllOOOllllOOlllOlOOlllllOOlllllOOlllllOOlllllOOlllllOOlllllOOlllllOOlllllOOlllllOOlllllOOlllllOOlllllOOlllllOOlllllOOllllOOOlllllOOlllllOOlllllOOlllllOOlllllOOlllllOOlllllOOlllllOOlllllOOlllllO","NHX","Niedernhausen Linde # Groß-Bieberau # Reinheim #"]
["REG",18,"HEAG Verkehrs-GmbH",null,"089_",0,"R","Mo-Fr",1000," ","Reinheim","Solo-Überlandbus-NF",0,0,0,0,0,"2000-01-01T10:08:36","2000-01-01T10:38:18",5.11500000115484,122.76000002771616,"wz    - nicht 24. und 31.12.",248,15643,3879.4639999999999,0,0,"OlllllOOlOOOlOOlOOllOOlllllOOlllllOOlllllOOlllllOOlllllOOlllllOOlllllOOlllllOOlllllOOlllllOOlllllOOlllllOOlllllOOlllllOOllllOOOOllllOOlllOlOOlllllOOlllllOOlllllOOlllOlOOlllllOOOllllOOlllOlOOlllllOOlllllOOlllllOOlllllOOlllllOOlllllOOlllllOOlllllOOlllllOOlllllOOlllllOOlllllOOlllllOOlllllOOllllOOOlllllOOlllllOOlllllOOlllllOOlllllOOlllllOOlllllOOlllllOOlllllOOlllllO","NHX","Niedernhausen Linde # Groß-Bieberau # Reinheim #"]
["REG",18,"HEAG Verkehrs-GmbH",null,"089_",0,"R","Mo-Fr",1000," ","Darmstadt","Solo-Überlandbus-NF",0,0,0,0,0,"2000-01-01T10:38:18","2000-01-01T10:52:00",2.3594444438349456,56.626666652038693,"wz    - nicht 24. und 31.12.",248,6758,1675.9839999999999,0,0,"OlllllOOlOOOlOOlOOllOOlllllOOlllllOOlllllOOlllllOOlllllOOlllllOOlllllOOlllllOOlllllOOlllllOOlllllOOlllllOOlllllOOlllllOOllllOOOOllllOOlllOlOOlllllOOlllllOOlllllOOlllOlOOlllllOOOllllOOlllOlOOlllllOOlllllOOlllllOOlllllOOlllllOOlllllOOlllllOOlllllOOlllllOOlllllOOlllllOOlllllOOlllllOOlllllOOllllOOOlllllOOlllllOOlllllOOlllllOOlllllOOlllllOOlllllOOlllllOOlllllOOlllllO","NHX","Niedernhausen Linde # Groß-Bieberau # Reinheim #"]
["REG",18,"HEAG Verkehrs-GmbH",null,"089_",0,"R","Mo-Fr",1100," ","Fischbachtal","Solo-Überlandbus-NF",0,0,0,0,0,"2000-01-01T11:00:00","2000-01-01T11:03:00",0.51666666654637083,12.3999999971129,"wz    - nicht 24. und 31.12.",248,2313,573.62400000000002,0,0,"OlllllOOlOOOlOOlOOllOOlllllOOlllllOOlllllOOlllllOOlllllOOlllllOOlllllOOlllllOOlllllOOlllllOOlllllOOlllllOOlllllOOlllllOOllllOOOOllllOOlllOlOOlllllOOlllllOOlllllOOlllOlOOlllllOOOllllOOlllOlOOlllllOOlllllOOlllllOOlllllOOlllllOOlllllOOlllllOOlllllOOlllllOOlllllOOlllllOOlllllOOlllllOOlllllOOllllOOOlllllOOlllllOOlllllOOlllllOOlllllOOlllllOOlllllOOlllllOOlllllOOlllllO","NHX","Niedernhausen Linde # Groß-Bieberau # Reinheim #"]
["REG",18,"HEAG Verkehrs-GmbH",null,"089_",0,"R","Mo-Fr",1100," ","Groß-Bieberau","Solo-Überlandbus-NF",0,0,0,0,0,"2000-01-01T11:03:00","2000-01-01T11:08:36",0.96444444434018806,23.146666664164513,"wz    - nicht 24. und 31.12.",248,2958,733.58399999999995,0,0,"OlllllOOlOOOlOOlOOllOOlllllOOlllllOOlllllOOlllllOOlllllOOlllllOOlllllOOlllllOOlllllOOlllllOOlllllOOlllllOOlllllOOlllllOOllllOOOOllllOOlllOlOOlllllOOlllllOOlllllOOlllOlOOlllllOOOllllOOlllOlOOlllllOOlllllOOlllllOOlllllOOlllllOOlllllOOlllllOOlllllOOlllllOOlllllOOlllllOOlllllOOlllllOOlllllOOllllOOOlllllOOlllllOOlllllOOlllllOOlllllOOlllllOOlllllOOlllllOOlllllOOlllllO","NHX","Niedernhausen Linde # Groß-Bieberau # Reinheim #"]
["REG",18,"HEAG Verkehrs-GmbH",null,"089_",0,"R","Mo-Fr",1100," ","Reinheim","Solo-Überlandbus-NF",0,0,0,0,0,"2000-01-01T11:08:36","2000-01-01T11:38:18",5.1149999993504025,122.75999998440966,"wz    - nicht 24. und 31.12.",248,15643,3879.4639999999999,0,0,"OlllllOOlOOOlOOlOOllOOlllllOOlllllOOlllllOOlllllOOlllllOOlllllOOlllllOOlllllOOlllllOOlllllOOlllllOOlllllOOlllllOOlllllOOllllOOOOllllOOlllOlOOlllllOOlllllOOlllllOOlllOlOOlllllOOOllllOOlllOlOOlllllOOlllllOOlllllOOlllllOOlllllOOlllllOOlllllOOlllllOOlllllOOlllllOOlllllOOlllllOOlllllOOlllllOOllllOOOlllllOOlllllOOlllllOOlllllOOlllllOOlllllOOlllllOOlllllOOlllllOOlllllO","NHX","Niedernhausen Linde # Groß-Bieberau # Reinheim #"]
["REG",18,"HEAG Verkehrs-GmbH",null,"089_",0,"R","Mo-Fr",1100," ","Darmstadt","Solo-Überlandbus-NF",0,0,0,0,0,"2000-01-01T11:38:18","2000-01-01T11:52:00",2.3594444438349456,56.626666652038693,"wz    - nicht 24. und 31.12.",248,6758,1675.9839999999999,0,0,"OlllllOOlOOOlOOlOOllOOlllllOOlllllOOlllllOOlllllOOlllllOOlllllOOlllllOOlllllOOlllllOOlllllOOlllllOOlllllOOlllllOOlllllOOllllOOOOllllOOlllOlOOlllllOOlllllOOlllllOOlllOlOOlllllOOOllllOOlllOlOOlllllOOlllllOOlllllOOlllllOOlllllOOlllllOOlllllOOlllllOOlllllOOlllllOOlllllOOlllllOOlllllOOlllllOOllllOOOlllllOOlllllOOlllllOOlllllOOlllllOOlllllOOlllllOOlllllOOlllllOOlllllO","NHX","Niedernhausen Linde # Groß-Bieberau # Reinheim #"]
["REG",18,"HEAG Verkehrs-GmbH",null,"089_",0,"R","Mo-Fr",1200," ","Fischbachtal","Solo-Überlandbus-NF",0,0,0,0,0,"2000-01-01T12:00:00","2000-01-01T12:03:00",0.51666666654637083,12.3999999971129,"wz    - nicht 24. und 31.12.",248,2313,573.62400000000002,0,0,"OlllllOOlOOOlOOlOOllOOlllllOOlllllOOlllllOOlllllOOlllllOOlllllOOlllllOOlllllOOlllllOOlllllOOlllllOOlllllOOlllllOOlllllOOllllOOOOllllOOlllOlOOlllllOOlllllOOlllllOOlllOlOOlllllOOOllllOOlllOlOOlllllOOlllllOOlllllOOlllllOOlllllOOlllllOOlllllOOlllllOOlllllOOlllllOOlllllOOlllllOOlllllOOlllllOOllllOOOlllllOOlllllOOlllllOOlllllOOlllllOOlllllOOlllllOOlllllOOlllllOOlllllO","NHX","Niedernhausen Linde # Groß-Bieberau # Reinheim #"]
["REG",18,"HEAG Verkehrs-GmbH",null,"089_",0,"R","Mo-Fr",1200," ","Groß-Bieberau","Solo-Überlandbus-NF",0,0,0,0,0,"2000-01-01T12:03:00","2000-01-01T12:08:36",0.96444444434018806,23.146666664164513,"wz    - nicht 24. und 31.12.",248,2958,733.58399999999995,0,0,"OlllllOOlOOOlOOlOOllOOlllllOOlllllOOlllllOOlllllOOlllllOOlllllOOlllllOOlllllOOlllllOOlllllOOlllllOOlllllOOlllllOOlllllOOllllOOOOllllOOlllOlOOlllllOOlllllOOlllllOOlllOlOOlllllOOOllllOOlllOlOOlllllOOlllllOOlllllOOlllllOOlllllOOlllllOOlllllOOlllllOOlllllOOlllllOOlllllOOlllllOOlllllOOlllllOOllllOOOlllllOOlllllOOlllllOOlllllOOlllllOOlllllOOlllllOOlllllOOlllllOOlllllO","NHX","Niedernhausen Linde # Groß-Bieberau # Reinheim #"]
["REG",18,"HEAG Verkehrs-GmbH",null,"089_",0,"R","Mo-Fr",1200," ","Reinheim","Solo-Überlandbus-NF",0,0,0,0,0,"2000-01-01T12:08:36","2000-01-01T12:38:18",5.1149999993504025,122.75999998440966,"wz    - nicht 24. und 31.12.",248,15643,3879.4639999999999,0,0,"OlllllOOlOOOlOOlOOllOOlllllOOlllllOOlllllOOlllllOOlllllOOlllllOOlllllOOlllllOOlllllOOlllllOOlllllOOlllllOOlllllOOlllllOOllllOOOOllllOOlllOlOOlllllOOlllllOOlllllOOlllOlOOlllllOOOllllOOlllOlOOlllllOOlllllOOlllllOOlllllOOlllllOOlllllOOlllllOOlllllOOlllllOOlllllOOlllllOOlllllOOlllllOOlllllOOllllOOOlllllOOlllllOOlllllOOlllllOOlllllOOlllllOOlllllOOlllllOOlllllOOlllllO","NHX","Niedernhausen Linde # Groß-Bieberau # Reinheim #"]
["REG",18,"HEAG Verkehrs-GmbH",null,"089_",0,"R","Mo-Fr",1200," ","Darmstadt","Solo-Überlandbus-NF",0,0,0,0,0,"2000-01-01T12:38:18","2000-01-01T12:52:00",2.359444445639383,56.626666695345193,"wz    - nicht 24. und 31.12.",248,6758,1675.9839999999999,0,0,"OlllllOOlOOOlOOlOOllOOlllllOOlllllOOlllllOOlllllOOlllllOOlllllOOlllllOOlllllOOlllllOOlllllOOlllllOOlllllOOlllllOOlllllOOllllOOOOllllOOlllOlOOlllllOOlllllOOlllllOOlllOlOOlllllOOOllllOOlllOlOOlllllOOlllllOOlllllOOlllllOOlllllOOlllllOOlllllOOlllllOOlllllOOlllllOOlllllOOlllllOOlllllOOlllllOOllllOOOlllllOOlllllOOlllllOOlllllOOlllllOOlllllOOlllllOOlllllOOlllllOOlllllO","NHX","Niedernhausen Linde # Groß-Bieberau # Reinheim #"]
["REG",18,"HEAG Verkehrs-GmbH",null,"089_",0,"R","Mo-Fr",1300," ","Fischbachtal","Solo-Überlandbus-NF",0,0,0,0,0,"2000-01-01T13:00:00","2000-01-01T13:03:00",0.51666666654637083,12.3999999971129,"wz    - nicht 24. und 31.12.",248,2313,573.62400000000002,0,0,"OlllllOOlOOOlOOlOOllOOlllllOOlllllOOlllllOOlllllOOlllllOOlllllOOlllllOOlllllOOlllllOOlllllOOlllllOOlllllOOlllllOOlllllOOllllOOOOllllOOlllOlOOlllllOOlllllOOlllllOOlllOlOOlllllOOOllllOOlllOlOOlllllOOlllllOOlllllOOlllllOOlllllOOlllllOOlllllOOlllllOOlllllOOlllllOOlllllOOlllllOOlllllOOlllllOOllllOOOlllllOOlllllOOlllllOOlllllOOlllllOOlllllOOlllllOOlllllOOlllllOOlllllO","NHX","Niedernhausen Linde # Groß-Bieberau # Reinheim #"]
["REG",18,"HEAG Verkehrs-GmbH",null,"089_",0,"R","Mo-Fr",1300," ","Groß-Bieberau","Solo-Überlandbus-NF",0,0,0,0,0,"2000-01-01T13:03:00","2000-01-01T13:08:36",0.96444444434018806,23.146666664164513,"wz    - nicht 24. und 31.12.",248,2958,733.58399999999995,0,0,"OlllllOOlOOOlOOlOOllOOlllllOOlllllOOlllllOOlllllOOlllllOOlllllOOlllllOOlllllOOlllllOOlllllOOlllllOOlllllOOlllllOOlllllOOllllOOOOllllOOlllOlOOlllllOOlllllOOlllllOOlllOlOOlllllOOOllllOOlllOlOOlllllOOlllllOOlllllOOlllllOOlllllOOlllllOOlllllOOlllllOOlllllOOlllllOOlllllOOlllllOOlllllOOlllllOOllllOOOlllllOOlllllOOlllllOOlllllOOlllllOOlllllOOlllllOOlllllOOlllllOOlllllO","NHX","Niedernhausen Linde # Groß-Bieberau # Reinheim #"]
["REG",18,"HEAG Verkehrs-GmbH",null,"089_",0,"R","Mo-Fr",1300," ","Reinheim","Solo-Überlandbus-NF",0,0,0,0,0,"2000-01-01T13:08:36","2000-01-01T13:38:18",5.11500000115484,122.76000002771616,"wz    - nicht 24. und 31.12.",248,15643,3879.4639999999999,0,0,"OlllllOOlOOOlOOlOOllOOlllllOOlllllOOlllllOOlllllOOlllllOOlllllOOlllllOOlllllOOlllllOOlllllOOlllllOOlllllOOlllllOOlllllOOllllOOOOllllOOlllOlOOlllllOOlllllOOlllllOOlllOlOOlllllOOOllllOOlllOlOOlllllOOlllllOOlllllOOlllllOOlllllOOlllllOOlllllOOlllllOOlllllOOlllllOOlllllOOlllllOOlllllOOlllllOOllllOOOlllllOOlllllOOlllllOOlllllOOlllllOOlllllOOlllllOOlllllOOlllllOOlllllO","NHX","Niedernhausen Linde # Groß-Bieberau # Reinheim #"]
["REG",18,"HEAG Verkehrs-GmbH",null,"089_",0,"R","Mo-Fr",1300," ","Darmstadt","Solo-Überlandbus-NF",0,0,0,0,0,"2000-01-01T13:38:18","2000-01-01T13:52:00",2.3594444438349456,56.626666652038693,"wz    - nicht 24. und 31.12.",248,6758,1675.9839999999999,0,0,"OlllllOOlOOOlOOlOOllOOlllllOOlllllOOlllllOOlllllOOlllllOOlllllOOlllllOOlllllOOlllllOOlllllOOlllllOOlllllOOlllllOOlllllOOllllOOOOllllOOlllOlOOlllllOOlllllOOlllllOOlllOlOOlllllOOOllllOOlllOlOOlllllOOlllllOOlllllOOlllllOOlllllOOlllllOOlllllOOlllllOOlllllOOlllllOOlllllOOlllllOOlllllOOlllllOOllllOOOlllllOOlllllOOlllllOOlllllOOlllllOOlllllOOlllllOOlllllOOlllllOOlllllO","NHX","Niedernhausen Linde # Groß-Bieberau # Reinheim #"]
["REG",18,"HEAG Verkehrs-GmbH",null,"089_",0,"R","Mo-Fr",1400," ","Fischbachtal","Solo-Überlandbus-NF",0,0,0,0,0,"2000-01-01T14:00:00","2000-01-01T14:03:00",0.51666666654637083,12.3999999971129,"wz    - nicht 24. und 31.12.",248,2313,573.62400000000002,0,0,"OlllllOOlOOOlOOlOOllOOlllllOOlllllOOlllllOOlllllOOlllllOOlllllOOlllllOOlllllOOlllllOOlllllOOlllllOOlllllOOlllllOOlllllOOllllOOOOllllOOlllOlOOlllllOOlllllOOlllllOOlllOlOOlllllOOOllllOOlllOlOOlllllOOlllllOOlllllOOlllllOOlllllOOlllllOOlllllOOlllllOOlllllOOlllllOOlllllOOlllllOOlllllOOlllllOOllllOOOlllllOOlllllOOlllllOOlllllOOlllllOOlllllOOlllllOOlllllOOlllllOOlllllO","NHX","Niedernhausen Linde # Groß-Bieberau # Reinheim #"]
["REG",18,"HEAG Verkehrs-GmbH",null,"089_",0,"R","Mo-Fr",1400," ","Groß-Bieberau","Solo-Überlandbus-NF",0,0,0,0,0,"2000-01-01T14:03:00","2000-01-01T14:08:36",0.96444444434018806,23.146666664164513,"wz    - nicht 24. und 31.12.",248,2958,733.58399999999995,0,0,"OlllllOOlOOOlOOlOOllOOlllllOOlllllOOlllllOOlllllOOlllllOOlllllOOlllllOOlllllOOlllllOOlllllOOlllllOOlllllOOlllllOOlllllOOllllOOOOllllOOlllOlOOlllllOOlllllOOlllllOOlllOlOOlllllOOOllllOOlllOlOOlllllOOlllllOOlllllOOlllllOOlllllOOlllllOOlllllOOlllllOOlllllOOlllllOOlllllOOlllllOOlllllOOlllllOOllllOOOlllllOOlllllOOlllllOOlllllOOlllllOOlllllOOlllllOOlllllOOlllllOOlllllO","NHX","Niedernhausen Linde # Groß-Bieberau # Reinheim #"]
["REG",18,"HEAG Verkehrs-GmbH",null,"089_",0,"R","Mo-Fr",1400," ","Reinheim","Solo-Überlandbus-NF",0,0,0,0,0,"2000-01-01T14:08:36","2000-01-01T14:38:18",5.1149999993504025,122.75999998440966,"wz    - nicht 24. und 31.12.",248,15643,3879.4639999999999,0,0,"OlllllOOlOOOlOOlOOllOOlllllOOlllllOOlllllOOlllllOOlllllOOlllllOOlllllOOlllllOOlllllOOlllllOOlllllOOlllllOOlllllOOlllllOOllllOOOOllllOOlllOlOOlllllOOlllllOOlllllOOlllOlOOlllllOOOllllOOlllOlOOlllllOOlllllOOlllllOOlllllOOlllllOOlllllOOlllllOOlllllOOlllllOOlllllOOlllllOOlllllOOlllllOOlllllOOllllOOOlllllOOlllllOOlllllOOlllllOOlllllOOlllllOOlllllOOlllllOOlllllOOlllllO","NHX","Niedernhausen Linde # Groß-Bieberau # Reinheim #"]
["REG",18,"HEAG Verkehrs-GmbH",null,"089_",0,"R","Mo-Fr",1400," ","Darmstadt","Solo-Überlandbus-NF",0,0,0,0,0,"2000-01-01T14:38:18","2000-01-01T14:52:00",2.3594444438349456,56.626666652038693,"wz    - nicht 24. und 31.12.",248,6758,1675.9839999999999,0,0,"OlllllOOlOOOlOOlOOllOOlllllOOlllllOOlllllOOlllllOOlllllOOlllllOOlllllOOlllllOOlllllOOlllllOOlllllOOlllllOOlllllOOlllllOOllllOOOOllllOOlllOlOOlllllOOlllllOOlllllOOlllOlOOlllllOOOllllOOlllOlOOlllllOOlllllOOlllllOOlllllOOlllllOOlllllOOlllllOOlllllOOlllllOOlllllOOlllllOOlllllOOlllllOOlllllOOllllOOOlllllOOlllllOOlllllOOlllllOOlllllOOlllllOOlllllOOlllllOOlllllOOlllllO","NHX","Niedernhausen Linde # Groß-Bieberau # Reinheim #"]
["REG",18,"HEAG Verkehrs-GmbH",null,"089_",0,"R","Mo-Fr",1500," ","Fischbachtal","Solo-Überlandbus-NF",0,0,0,0,0,"2000-01-01T15:00:00","2000-01-01T15:03:00",0.51666666654637083,12.3999999971129,"wz    - nicht 24. und 31.12.",248,2313,573.62400000000002,0,0,"OlllllOOlOOOlOOlOOllOOlllllOOlllllOOlllllOOlllllOOlllllOOlllllOOlllllOOlllllOOlllllOOlllllOOlllllOOlllllOOlllllOOlllllOOllllOOOOllllOOlllOlOOlllllOOlllllOOlllllOOlllOlOOlllllOOOllllOOlllOlOOlllllOOlllllOOlllllOOlllllOOlllllOOlllllOOlllllOOlllllOOlllllOOlllllOOlllllOOlllllOOlllllOOlllllOOllllOOOlllllOOlllllOOlllllOOlllllOOlllllOOlllllOOlllllOOlllllOOlllllOOlllllO","NHX","Niedernhausen Linde # Groß-Bieberau # Reinheim #"]
["REG",18,"HEAG Verkehrs-GmbH",null,"089_",0,"R","Mo-Fr",1500," ","Groß-Bieberau","Solo-Überlandbus-NF",0,0,0,0,0,"2000-01-01T15:03:00","2000-01-01T15:08:36",0.96444444434018806,23.146666664164513,"wz    - nicht 24. und 31.12.",248,2958,733.58399999999995,0,0,"OlllllOOlOOOlOOlOOllOOlllllOOlllllOOlllllOOlllllOOlllllOOlllllOOlllllOOlllllOOlllllOOlllllOOlllllOOlllllOOlllllOOlllllOOllllOOOOllllOOlllOlOOlllllOOlllllOOlllllOOlllOlOOlllllOOOllllOOlllOlOOlllllOOlllllOOlllllOOlllllOOlllllOOlllllOOlllllOOlllllOOlllllOOlllllOOlllllOOlllllOOlllllOOlllllOOllllOOOlllllOOlllllOOlllllOOlllllOOlllllOOlllllOOlllllOOlllllOOlllllOOlllllO","NHX","Niedernhausen Linde # Groß-Bieberau # Reinheim #"]
["REG",18,"HEAG Verkehrs-GmbH",null,"089_",0,"R","Mo-Fr",1500," ","Reinheim","Solo-Überlandbus-NF",0,0,0,0,0,"2000-01-01T15:08:36","2000-01-01T15:38:18",5.1149999993504025,122.75999998440966,"wz    - nicht 24. und 31.12.",248,15643,3879.4639999999999,0,0,"OlllllOOlOOOlOOlOOllOOlllllOOlllllOOlllllOOlllllOOlllllOOlllllOOlllllOOlllllOOlllllOOlllllOOlllllOOlllllOOlllllOOlllllOOllllOOOOllllOOlllOlOOlllllOOlllllOOlllllOOlllOlOOlllllOOOllllOOlllOlOOlllllOOlllllOOlllllOOlllllOOlllllOOlllllOOlllllOOlllllOOlllllOOlllllOOlllllOOlllllOOlllllOOlllllOOllllOOOlllllOOlllllOOlllllOOlllllOOlllllOOlllllOOlllllOOlllllOOlllllOOlllllO","NHX","Niedernhausen Linde # Groß-Bieberau # Reinheim #"]
["REG",18,"HEAG Verkehrs-GmbH",null,"089_",0,"R","Mo-Fr",1500," ","Darmstadt","Solo-Überlandbus-NF",0,0,0,0,0,"2000-01-01T15:38:18","2000-01-01T15:52:00",2.359444445639383,56.626666695345193,"wz    - nicht 24. und 31.12.",248,6758,1675.9839999999999,0,0,"OlllllOOlOOOlOOlOOllOOlllllOOlllllOOlllllOOlllllOOlllllOOlllllOOlllllOOlllllOOlllllOOlllllOOlllllOOlllllOOlllllOOlllllOOllllOOOOllllOOlllOlOOlllllOOlllllOOlllllOOlllOlOOlllllOOOllllOOlllOlOOlllllOOlllllOOlllllOOlllllOOlllllOOlllllOOlllllOOlllllOOlllllOOlllllOOlllllOOlllllOOlllllOOlllllOOllllOOOlllllOOlllllOOlllllOOlllllOOlllllOOlllllOOlllllOOlllllOOlllllOOlllllO","NHX","Niedernhausen Linde # Groß-Bieberau # Reinheim #"]
["REG",18,"HEAG Verkehrs-GmbH",null,"089_",0,"R","Mo-Fr",1600," ","Fischbachtal","Solo-Überlandbus-NF",0,0,0,0,0,"2000-01-01T16:00:00","2000-01-01T16:03:00",0.51666666654637083,12.3999999971129,"wz    - nicht 24. und 31.12.",248,2313,573.62400000000002,0,0,"OlllllOOlOOOlOOlOOllOOlllllOOlllllOOlllllOOlllllOOlllllOOlllllOOlllllOOlllllOOlllllOOlllllOOlllllOOlllllOOlllllOOlllllOOllllOOOOllllOOlllOlOOlllllOOlllllOOlllllOOlllOlOOlllllOOOllllOOlllOlOOlllllOOlllllOOlllllOOlllllOOlllllOOlllllOOlllllOOlllllOOlllllOOlllllOOlllllOOlllllOOlllllOOlllllOOllllOOOlllllOOlllllOOlllllOOlllllOOlllllOOlllllOOlllllOOlllllOOlllllOOlllllO","NHX","Niedernhausen Linde # Groß-Bieberau # Reinheim #"]
["REG",18,"HEAG Verkehrs-GmbH",null,"089_",0,"R","Mo-Fr",1600," ","Groß-Bieberau","Solo-Überlandbus-NF",0,0,0,0,0,"2000-01-01T16:03:00","2000-01-01T16:08:36",0.96444444434018806,23.146666664164513,"wz    - nicht 24. und 31.12.",248,2958,733.58399999999995,0,0,"OlllllOOlOOOlOOlOOllOOlllllOOlllllOOlllllOOlllllOOlllllOOlllllOOlllllOOlllllOOlllllOOlllllOOlllllOOlllllOOlllllOOlllllOOllllOOOOllllOOlllOlOOlllllOOlllllOOlllllOOlllOlOOlllllOOOllllOOlllOlOOlllllOOlllllOOlllllOOlllllOOlllllOOlllllOOlllllOOlllllOOlllllOOlllllOOlllllOOlllllOOlllllOOlllllOOllllOOOlllllOOlllllOOlllllOOlllllOOlllllOOlllllOOlllllOOlllllOOlllllOOlllllO","NHX","Niedernhausen Linde # Groß-Bieberau # Reinheim #"]
["REG",18,"HEAG Verkehrs-GmbH",null,"089_",0,"R","Mo-Fr",1600," ","Reinheim","Solo-Überlandbus-NF",0,0,0,0,0,"2000-01-01T16:08:36","2000-01-01T16:38:18",5.11500000115484,122.76000002771616,"wz    - nicht 24. und 31.12.",248,15643,3879.4639999999999,0,0,"OlllllOOlOOOlOOlOOllOOlllllOOlllllOOlllllOOlllllOOlllllOOlllllOOlllllOOlllllOOlllllOOlllllOOlllllOOlllllOOlllllOOlllllOOllllOOOOllllOOlllOlOOlllllOOlllllOOlllllOOlllOlOOlllllOOOllllOOlllOlOOlllllOOlllllOOlllllOOlllllOOlllllOOlllllOOlllllOOlllllOOlllllOOlllllOOlllllOOlllllOOlllllOOlllllOOllllOOOlllllOOlllllOOlllllOOlllllOOlllllOOlllllOOlllllOOlllllOOlllllOOlllllO","NHX","Niedernhausen Linde # Groß-Bieberau # Reinheim #"]
["REG",18,"HEAG Verkehrs-GmbH",null,"089_",0,"R","Mo-Fr",1600," ","Darmstadt","Solo-Überlandbus-NF",0,0,0,0,0,"2000-01-01T16:38:18","2000-01-01T16:52:00",2.3594444438349456,56.626666652038693,"wz    - nicht 24. und 31.12.",248,6758,1675.9839999999999,0,0,"OlllllOOlOOOlOOlOOllOOlllllOOlllllOOlllllOOlllllOOlllllOOlllllOOlllllOOlllllOOlllllOOlllllOOlllllOOlllllOOlllllOOlllllOOllllOOOOllllOOlllOlOOlllllOOlllllOOlllllOOlllOlOOlllllOOOllllOOlllOlOOlllllOOlllllOOlllllOOlllllOOlllllOOlllllOOlllllOOlllllOOlllllOOlllllOOlllllOOlllllOOlllllOOlllllOOllllOOOlllllOOlllllOOlllllOOlllllOOlllllOOlllllOOlllllOOlllllOOlllllOOlllllO","NHX","Niedernhausen Linde # Groß-Bieberau # Reinheim #"]
["REG",18,"HEAG Verkehrs-GmbH",null,"089_",0,"R","Mo-Fr",1700," ","Fischbachtal","Solo-Überlandbus-NF",0,0,0,0,0,"2000-01-01T17:00:00","2000-01-01T17:03:00",0.51666666654637083,12.3999999971129,"wz    - nicht 24. und 31.12.",248,2313,573.62400000000002,0,0,"OlllllOOlOOOlOOlOOllOOlllllOOlllllOOlllllOOlllllOOlllllOOlllllOOlllllOOlllllOOlllllOOlllllOOlllllOOlllllOOlllllOOlllllOOllllOOOOllllOOlllOlOOlllllOOlllllOOlllllOOlllOlOOlllllOOOllllOOlllOlOOlllllOOlllllOOlllllOOlllllOOlllllOOlllllOOlllllOOlllllOOlllllOOlllllOOlllllOOlllllOOlllllOOlllllOOllllOOOlllllOOlllllOOlllllOOlllllOOlllllOOlllllOOlllllOOlllllOOlllllOOlllllO","NHX","Niedernhausen Linde # Groß-Bieberau # Reinheim #"]
["REG",18,"HEAG Verkehrs-GmbH",null,"089_",0,"R","Mo-Fr",1700," ","Groß-Bieberau","Solo-Überlandbus-NF",0,0,0,0,0,"2000-01-01T17:03:00","2000-01-01T17:08:36",0.96444444434018806,23.146666664164513,"wz    - nicht 24. und 31.12.",248,2958,733.58399999999995,0,0,"OlllllOOlOOOlOOlOOllOOlllllOOlllllOOlllllOOlllllOOlllllOOlllllOOlllllOOlllllOOlllllOOlllllOOlllllOOlllllOOlllllOOlllllOOllllOOOOllllOOlllOlOOlllllOOlllllOOlllllOOlllOlOOlllllOOOllllOOlllOlOOlllllOOlllllOOlllllOOlllllOOlllllOOlllllOOlllllOOlllllOOlllllOOlllllOOlllllOOlllllOOlllllOOlllllOOllllOOOlllllOOlllllOOlllllOOlllllOOlllllOOlllllOOlllllOOlllllOOlllllOOlllllO","NHX","Niedernhausen Linde # Groß-Bieberau # Reinheim #"]
["REG",18,"HEAG Verkehrs-GmbH",null,"089_",0,"R","Mo-Fr",1700," ","Reinheim","Solo-Überlandbus-NF",0,0,0,0,0,"2000-01-01T17:08:36","2000-01-01T17:38:18",5.1149999993504025,122.75999998440966,"wz    - nicht 24. und 31.12.",248,15643,3879.4639999999999,0,0,"OlllllOOlOOOlOOlOOllOOlllllOOlllllOOlllllOOlllllOOlllllOOlllllOOlllllOOlllllOOlllllOOlllllOOlllllOOlllllOOlllllOOlllllOOllllOOOOllllOOlllOlOOlllllOOlllllOOlllllOOlllOlOOlllllOOOllllOOlllOlOOlllllOOlllllOOlllllOOlllllOOlllllOOlllllOOlllllOOlllllOOlllllOOlllllOOlllllOOlllllOOlllllOOlllllOOllllOOOlllllOOlllllOOlllllOOlllllOOlllllOOlllllOOlllllOOlllllOOlllllOOlllllO","NHX","Niedernhausen Linde # Groß-Bieberau # Reinheim #"]
["REG",18,"HEAG Verkehrs-GmbH",null,"089_",0,"R","Mo-Fr",1700," ","Darmstadt","Solo-Überlandbus-NF",0,0,0,0,0,"2000-01-01T17:38:18","2000-01-01T17:52:00",2.3594444438349456,56.626666652038693,"wz    - nicht 24. und 31.12.",248,6758,1675.9839999999999,0,0,"OlllllOOlOOOlOOlOOllOOlllllOOlllllOOlllllOOlllllOOlllllOOlllllOOlllllOOlllllOOlllllOOlllllOOlllllOOlllllOOlllllOOlllllOOllllOOOOllllOOlllOlOOlllllOOlllllOOlllllOOlllOlOOlllllOOOllllOOlllOlOOlllllOOlllllOOlllllOOlllllOOlllllOOlllllOOlllllOOlllllOOlllllOOlllllOOlllllOOlllllOOlllllOOlllllOOllllOOOlllllOOlllllOOlllllOOlllllOOlllllOOlllllOOlllllOOlllllOOlllllOOlllllO","NHX","Niedernhausen Linde # Groß-Bieberau # Reinheim #"]
["REG",18,"HEAG Verkehrs-GmbH",null,"089_",0,"R","Mo-Fr",1800," ","Fischbachtal","Solo-Überlandbus-NF",0,0,0,0,0,"2000-01-01T18:00:00","2000-01-01T18:03:00",0.51666666654637083,12.3999999971129,"wz    - nicht 24. und 31.12.",248,2313,573.62400000000002,0,0,"OlllllOOlOOOlOOlOOllOOlllllOOlllllOOlllllOOlllllOOlllllOOlllllOOlllllOOlllllOOlllllOOlllllOOlllllOOlllllOOlllllOOlllllOOllllOOOOllllOOlllOlOOlllllOOlllllOOlllllOOlllOlOOlllllOOOllllOOlllOlOOlllllOOlllllOOlllllOOlllllOOlllllOOlllllOOlllllOOlllllOOlllllOOlllllOOlllllOOlllllOOlllllOOlllllOOllllOOOlllllOOlllllOOlllllOOlllllOOlllllOOlllllOOlllllOOlllllOOlllllOOlllllO","NHX","Niedernhausen Linde # Groß-Bieberau # Reinheim #"]
["REG",18,"HEAG Verkehrs-GmbH",null,"089_",0,"R","Mo-Fr",1800," ","Groß-Bieberau","Solo-Überlandbus-NF",0,0,0,0,0,"2000-01-01T18:03:00","2000-01-01T18:08:36",0.96444444434018806,23.146666664164513,"wz    - nicht 24. und 31.12.",248,2958,733.58399999999995,0,0,"OlllllOOlOOOlOOlOOllOOlllllOOlllllOOlllllOOlllllOOlllllOOlllllOOlllllOOlllllOOlllllOOlllllOOlllllOOlllllOOlllllOOlllllOOllllOOOOllllOOlllOlOOlllllOOlllllOOlllllOOlllOlOOlllllOOOllllOOlllOlOOlllllOOlllllOOlllllOOlllllOOlllllOOlllllOOlllllOOlllllOOlllllOOlllllOOlllllOOlllllOOlllllOOlllllOOllllOOOlllllOOlllllOOlllllOOlllllOOlllllOOlllllOOlllllOOlllllOOlllllOOlllllO","NHX","Niedernhausen Linde # Groß-Bieberau # Reinheim #"]
["REG",18,"HEAG Verkehrs-GmbH",null,"089_",0,"R","Mo-Fr",1800," ","Reinheim","Solo-Überlandbus-NF",0,0,0,0,0,"2000-01-01T18:08:36","2000-01-01T18:38:18",5.1149999993504025,122.75999998440966,"wz    - nicht 24. und 31.12.",248,15643,3879.4639999999999,0,0,"OlllllOOlOOOlOOlOOllOOlllllOOlllllOOlllllOOlllllOOlllllOOlllllOOlllllOOlllllOOlllllOOlllllOOlllllOOlllllOOlllllOOlllllOOllllOOOOllllOOlllOlOOlllllOOlllllOOlllllOOlllOlOOlllllOOOllllOOlllOlOOlllllOOlllllOOlllllOOlllllOOlllllOOlllllOOlllllOOlllllOOlllllOOlllllOOlllllOOlllllOOlllllOOlllllOOllllOOOlllllOOlllllOOlllllOOlllllOOlllllOOlllllOOlllllOOlllllOOlllllOOlllllO","NHX","Niedernhausen Linde # Groß-Bieberau # Reinheim #"]
["REG",18,"HEAG Verkehrs-GmbH",null,"089_",0,"R","Mo-Fr",1800," ","Darmstadt","Solo-Überlandbus-NF",0,0,0,0,0,"2000-01-01T18:38:18","2000-01-01T18:52:00",2.359444445639383,56.626666695345193,"wz    - nicht 24. und 31.12.",248,6758,1675.9839999999999,0,0,"OlllllOOlOOOlOOlOOllOOlllllOOlllllOOlllllOOlllllOOlllllOOlllllOOlllllOOlllllOOlllllOOlllllOOlllllOOlllllOOlllllOOlllllOOllllOOOOllllOOlllOlOOlllllOOlllllOOlllllOOlllOlOOlllllOOOllllOOlllOlOOlllllOOlllllOOlllllOOlllllOOlllllOOlllllOOlllllOOlllllOOlllllOOlllllOOlllllOOlllllOOlllllOOlllllOOllllOOOlllllOOlllllOOlllllOOlllllOOlllllOOlllllOOlllllOOlllllOOlllllOOlllllO","NHX","Niedernhausen Linde # Groß-Bieberau # Reinheim #"]
["REG",18,"HEAG Verkehrs-GmbH",null,"089_",0,"R","Mo-Fr",1900," ","Fischbachtal","Solo-Überlandbus-NF",0,0,0,0,0,"2000-01-01T19:00:00","2000-01-01T19:03:00",0.51666666654637083,12.3999999971129,"wz    - nicht 24. und 31.12.",248,2313,573.62400000000002,0,0,"OlllllOOlOOOlOOlOOllOOlllllOOlllllOOlllllOOlllllOOlllllOOlllllOOlllllOOlllllOOlllllOOlllllOOlllllOOlllllOOlllllOOlllllOOllllOOOOllllOOlllOlOOlllllOOlllllOOlllllOOlllOlOOlllllOOOllllOOlllOlOOlllllOOlllllOOlllllOOlllllOOlllllOOlllllOOlllllOOlllllOOlllllOOlllllOOlllllOOlllllOOlllllOOlllllOOllllOOOlllllOOlllllOOlllllOOlllllOOlllllOOlllllOOlllllOOlllllOOlllllOOlllllO","NHX","Niedernhausen Linde # Groß-Bieberau # Reinheim #"]
["REG",18,"HEAG Verkehrs-GmbH",null,"089_",0,"R","Mo-Fr",1900," ","Groß-Bieberau","Solo-Überlandbus-NF",0,0,0,0,0,"2000-01-01T19:03:00","2000-01-01T19:08:36",0.96444444434018806,23.146666664164513,"wz    - nicht 24. und 31.12.",248,2958,733.58399999999995,0,0,"OlllllOOlOOOlOOlOOllOOlllllOOlllllOOlllllOOlllllOOlllllOOlllllOOlllllOOlllllOOlllllOOlllllOOlllllOOlllllOOlllllOOlllllOOllllOOOOllllOOlllOlOOlllllOOlllllOOlllllOOlllOlOOlllllOOOllllOOlllOlOOlllllOOlllllOOlllllOOlllllOOlllllOOlllllOOlllllOOlllllOOlllllOOlllllOOlllllOOlllllOOlllllOOlllllOOllllOOOlllllOOlllllOOlllllOOlllllOOlllllOOlllllOOlllllOOlllllOOlllllOOlllllO","NHX","Niedernhausen Linde # Groß-Bieberau # Reinheim #"]
["REG",18,"HEAG Verkehrs-GmbH",null,"089_",0,"R","Mo-Fr",1900," ","Reinheim","Solo-Überlandbus-NF",0,0,0,0,0,"2000-01-01T19:08:36","2000-01-01T19:38:18",5.11500000115484,122.76000002771616,"wz    - nicht 24. und 31.12.",248,15643,3879.4639999999999,0,0,"OlllllOOlOOOlOOlOOllOOlllllOOlllllOOlllllOOlllllOOlllllOOlllllOOlllllOOlllllOOlllllOOlllllOOlllllOOlllllOOlllllOOlllllOOllllOOOOllllOOlllOlOOlllllOOlllllOOlllllOOlllOlOOlllllOOOllllOOlllOlOOlllllOOlllllOOlllllOOlllllOOlllllOOlllllOOlllllOOlllllOOlllllOOlllllOOlllllOOlllllOOlllllOOlllllOOllllOOOlllllOOlllllOOlllllOOlllllOOlllllOOlllllOOlllllOOlllllOOlllllOOlllllO","NHX","Niedernhausen Linde # Groß-Bieberau # Reinheim #"]
["REG",18,"HEAG Verkehrs-GmbH",null,"089_",0,"R","Mo-Fr",1900," ","Darmstadt","Solo-Überlandbus-NF",0,0,0,0,0,"2000-01-01T19:38:18","2000-01-01T19:52:00",2.3594444438349456,56.626666652038693,"wz    - nicht 24. und 31.12.",248,6758,1675.9839999999999,0,0,"OlllllOOlOOOlOOlOOllOOlllllOOlllllOOlllllOOlllllOOlllllOOlllllOOlllllOOlllllOOlllllOOlllllOOlllllOOlllllOOlllllOOlllllOOllllOOOOllllOOlllOlOOlllllOOlllllOOlllllOOlllOlOOlllllOOOllllOOlllOlOOlllllOOlllllOOlllllOOlllllOOlllllOOlllllOOlllllOOlllllOOlllllOOlllllOOlllllOOlllllOOlllllOOlllllOOllllOOOlllllOOlllllOOlllllOOlllllOOlllllOOlllllOOlllllOOlllllOOlllllOOlllllO","NHX","Niedernhausen Linde # Groß-Bieberau # Reinheim #"]
["REG",18,"HEAG Verkehrs-GmbH",null,"089_",0,"R","Mo-Fr",2000," ","Fischbachtal","Solo-Überlandbus-NF",0,0,0,0,0,"2000-01-01T20:00:00","2000-01-01T20:03:00",0.51666666654637083,12.3999999971129,"wz    - nicht 24. und 31.12.",248,2313,573.62400000000002,0,0,"OlllllOOlOOOlOOlOOllOOlllllOOlllllOOlllllOOlllllOOlllllOOlllllOOlllllOOlllllOOlllllOOlllllOOlllllOOlllllOOlllllOOlllllOOllllOOOOllllOOlllOlOOlllllOOlllllOOlllllOOlllOlOOlllllOOOllllOOlllOlOOlllllOOlllllOOlllllOOlllllOOlllllOOlllllOOlllllOOlllllOOlllllOOlllllOOlllllOOlllllOOlllllOOlllllOOllllOOOlllllOOlllllOOlllllOOlllllOOlllllOOlllllOOlllllOOlllllOOlllllOOlllllO","NHX","Niedernhausen Linde # Groß-Bieberau # Reinheim #"]
["REG",18,"HEAG Verkehrs-GmbH",null,"089_",0,"R","Mo-Fr",2000," ","Groß-Bieberau","Solo-Überlandbus-NF",0,0,0,0,0,"2000-01-01T20:03:00","2000-01-01T20:08:36",0.96444444434018806,23.146666664164513,"wz    - nicht 24. und 31.12.",248,2958,733.58399999999995,0,0,"OlllllOOlOOOlOOlOOllOOlllllOOlllllOOlllllOOlllllOOlllllOOlllllOOlllllOOlllllOOlllllOOlllllOOlllllOOlllllOOlllllOOlllllOOllllOOOOllllOOlllOlOOlllllOOlllllOOlllllOOlllOlOOlllllOOOllllOOlllOlOOlllllOOlllllOOlllllOOlllllOOlllllOOlllllOOlllllOOlllllOOlllllOOlllllOOlllllOOlllllOOlllllOOlllllOOllllOOOlllllOOlllllOOlllllOOlllllOOlllllOOlllllOOlllllOOlllllOOlllllOOlllllO","NHX","Niedernhausen Linde # Groß-Bieberau # Reinheim #"]
["REG",18,"HEAG Verkehrs-GmbH",null,"089_",0,"R","Mo-Fr",2000," ","Reinheim","Solo-Überlandbus-NF",0,0,0,0,0,"2000-01-01T20:08:36","2000-01-01T20:38:18",5.1149999993504025,122.75999998440966,"wz    - nicht 24. und 31.12.",248,15643,3879.4639999999999,0,0,"OlllllOOlOOOlOOlOOllOOlllllOOlllllOOlllllOOlllllOOlllllOOlllllOOlllllOOlllllOOlllllOOlllllOOlllllOOlllllOOlllllOOlllllOOllllOOOOllllOOlllOlOOlllllOOlllllOOlllllOOlllOlOOlllllOOOllllOOlllOlOOlllllOOlllllOOlllllOOlllllOOlllllOOlllllOOlllllOOlllllOOlllllOOlllllOOlllllOOlllllOOlllllOOlllllOOllllOOOlllllOOlllllOOlllllOOlllllOOlllllOOlllllOOlllllOOlllllOOlllllOOlllllO","NHX","Niedernhausen Linde # Groß-Bieberau # Reinheim #"]
["REG",18,"HEAG Verkehrs-GmbH",null,"089_",0,"R","Mo-Fr",2000," ","Darmstadt","Solo-Überlandbus-NF",0,0,0,0,0,"2000-01-01T20:38:18","2000-01-01T20:52:00",2.3594444438349456,{"$f":"T131*24","v":56.626666652038693},"wz    - nicht 24. und 31.12.",248,6758,1675.9839999999999,0,0,"OlllllOOlOOOlOOlOOllOOlllllOOlllllOOlllllOOlllllOOlllllOOlllllOOlllllOOlllllOOlllllOOlllllOOlllllOOlllllOOlllllOOlllllOOllllOOOOllllOOlllOlOOlllllOOlllllOOlllllOOlllOlOOlllllOOOllllOOlllOlOOlllllOOlllllOOlllllOOlllllOOlllllOOlllllOOlllllOOlllllOOlllllOOlllllOOlllllOOlllllOOlllllOOlllllOOllllOOOlllllOOlllllOOlllllOOlllllOOlllllOOlllllOOlllllOOlllllOOlllllOOlllllO","NHX","Niedernhausen Linde # Groß-Bieberau # Reinheim #"]
["REG",18,"HEAG Verkehrs-GmbH",null,"089_",0,"R","Mo-Fr",2100," ","Fischbachtal","Solo-Überlandbus-NF",0,0,0,0,0,"2000-01-01T21:00:00","2000-01-01T21:03:00",0.51666666654637083,12.3999999971129,"wz    - nicht 24. und 31.12.",248,2313,573.62400000000002,0,0,"OlllllOOlOOOlOOlOOllOOlllllOOlllllOOlllllOOlllllOOlllllOOlllllOOlllllOOlllllOOlllllOOlllllOOlllllOOlllllOOlllllOOlllllOOllllOOOOllllOOlllOlOOlllllOOlllllOOlllllOOlllOlOOlllllOOOllllOOlllOlOOlllllOOlllllOOlllllOOlllllOOlllllOOlllllOOlllllOOlllllOOlllllOOlllllOOlllllOOlllllOOlllllOOlllllOOllllOOOlllllOOlllllOOlllllOOlllllOOlllllOOlllllOOlllllOOlllllOOlllllOOlllllO","NHX","Niedernhausen Linde # Groß-Bieberau # Reinheim #"]
["REG",18,"HEAG Verkehrs-GmbH",null,"089_",0,"R","Mo-Fr",2100," ","Groß-Bieberau","Solo-Überlandbus-NF",0,0,0,0,0,"2000-01-01T21:03:00","2000-01-01T21:08:36",0.96444444434018806,23.146666664164513,"wz    - nicht 24. und 31.12.",248,2958,733.58399999999995,0,0,"OlllllOOlOOOlOOlOOllOOlllllOOlllllOOlllllOOlllllOOlllllOOlllllOOlllllOOlllllOOlllllOOlllllOOlllllOOlllllOOlllllOOlllllOOllllOOOOllllOOlllOlOOlllllOOlllllOOlllllOOlllOlOOlllllOOOllllOOlllOlOOlllllOOlllllOOlllllOOlllllOOlllllOOlllllOOlllllOOlllllOOlllllOOlllllOOlllllOOlllllOOlllllOOlllllOOllllOOOlllllOOlllllOOlllllOOlllllOOlllllOOlllllOOlllllOOlllllOOlllllOOlllllO","NHX","Niedernhausen Linde # Groß-Bieberau # Reinheim #"]
["REG",18,"HEAG Verkehrs-GmbH",null,"089_",0,"R","Mo-Fr",2100," ","Reinheim","Solo-Überlandbus-NF",0,0,0,0,0,"2000-01-01T21:08:36","2000-01-01T21:38:18",5.1149999993504025,122.75999998440966,"wz    - nicht 24. und 31.12.",248,15643,3879.4639999999999,0,0,"OlllllOOlOOOlOOlOOllOOlllllOOlllllOOlllllOOlllllOOlllllOOlllllOOlllllOOlllllOOlllllOOlllllOOlllllOOlllllOOlllllOOlllllOOllllOOOOllllOOlllOlOOlllllOOlllllOOlllllOOlllOlOOlllllOOOllllOOlllOlOOlllllOOlllllOOlllllOOlllllOOlllllOOlllllOOlllllOOlllllOOlllllOOlllllOOlllllOOlllllOOlllllOOlllllOOllllOOOlllllOOlllllOOlllllOOlllllOOlllllOOlllllOOlllllOOlllllOOlllllOOlllllO","NHX","Niedernhausen Linde # Groß-Bieberau # Reinheim #"]
["REG",18,"HEAG Verkehrs-GmbH",null,"089_",0,"R","Mo-Fr",2100," ","Darmstadt","Solo-Überlandbus-NF",0,0,0,0,0,"2000-01-01T21:38:18","2000-01-01T21:52:00",2.359444445639383,56.626666695345193,"wz    - nicht 24. und 31.12.",248,6758,1675.9839999999999,0,0,"OlllllOOlOOOlOOlOOllOOlllllOOlllllOOlllllOOlllllOOlllllOOlllllOOlllllOOlllllOOlllllOOlllllOOlllllOOlllllOOlllllOOlllllOOllllOOOOllllOOlllOlOOlllllOOlllllOOlllllOOlllOlOOlllllOOOllllOOlllOlOOlllllOOlllllOOlllllOOlllllOOlllllOOlllllOOlllllOOlllllOOlllllOOlllllOOlllllOOlllllOOlllllOOlllllOOllllOOOlllllOOlllllOOlllllOOlllllOOlllllOOlllllOOlllllOOlllllOOlllllOOlllllO","NHX","Niedernhausen Linde # Groß-Bieberau # Reinheim #"]
[null,null,null,null,null,null,null,null,null,null,null,null,null,null,null,null,null,null,null,null,{"$f":"SUM(U2:U135)","v":7153.2666665796423}]

{"sheet":"Ermittlung Fahrplanstunden","index":3,"n_rows":2,"n_cols":2,"rows_kept":2,"cut":false,"hidden":false,"merged":[]}
["Fahrplanstunden gem. Betriebsleistungsstatistik",{"$f":"Grunddaten!U136","v":7153.2666665796423}]
["anrechenbare Fahrplanstunden",{"$f":"B1","v":7153.2666665796423}]